{"text_format":"1","workbook":"xlsx","n_sheets":1,"sheets":["CATALOGO FTOP202111"],"not_rendered":{"charts":0,"images":3,"macros":1,"external_links":1,"defined_names":26,"comments":1,"pivot_tables":0},"unopened":[],"bounds":{"document_bytes":16777216,"sheet_cells":100000,"rows_first":2000,"rows_last":500,"rows_between":2000,"halvings":0,"cell_chars":16384,"cell_head_chars":4096},"cells_cut":0,"cells_raw":0,"read":"whole","date_system":"1900"}

{"sheet":"CATALOGO FTOP202111","index":0,"n_rows":243,"n_cols":11,"rows_kept":243,"cut":false,"hidden":false,"merged":[[8,4,8,6],[0,0,0,6],[1,1,1,6],[2,1,2,6],[4,1,4,6],[7,0,7,6]]}
["H. XVI AYUNTAMIENTO DE LA PAZ"]
[null,"DIRECCION GENERAL DE OBRAS PUBLICAS Y ASENTAMIENTOS HUMANOS"]
[null,"DIRECCION DE OBRAS PUBLICAS"]
[]
[null,"CATALOGO DE CONCEPTOS"]
[]
[]
["OBRA: PAVIMENTACION DE LA 2DA ETAPA CON CONCRETO HIDRAULICO DE LA CALLE TOPETE TRAMO DE CALLE HORIZONTE A CALLE BENITO JUAREZ, EN TODOS SANTOS, B.C.S."]
["CLAVE: FTOP202111"]
["CLAVE","DESCRIPCION","UNIDAD","CANTIDAD","PRECIO UNITARIO","PRECIO UNITARIO CON LETRA","IMPORTE"]
[]
["I.-TRABAJOS PRELIMINARES"]
[1,"DEMOLICION DE GUARNICIONES DE CONCRETO EXISTENTES POR ENCONTRARSE EN MALAS CONDICIONES Y/O NO DAR LOS NIVELES DE PROYECTO. INCLUYE: CORTE CON CORTADORA DE DISCO, CARGA Y RETIRO DE ESCOMBRO FUERA DE LA OBRA HASTA EL LUGAR INDICADO POR LA SUPERVISION, LA MANO DE OBRA, HERRAMIENTA Y EQUIPO NECESARIO.","ML",30,null,null,{"$f":"ROUND(D13*E13,2)","v":0}]
[2,"DEMOLICION DE BANQUETAS Y/O RAMPAS  DE CONCRETO EXISTENTES POR ENCONTRARSE EN MALAS CONDICIONES Y/O NO DAR LOS NIVELES DE PROYECTO . INCLUYE: CORTE CON CORTADORA DE DISCO, LIMPIEZA, CARGA Y RETIRO DE ESCOMBRO FUERA DE LA OBRA HASTA EL LUGAR INDICADO POR LA SUPERVISION, LA MANO DE OBRA, HERRAMIENTA Y EQUIPO NECESARIO.","M2",{"$f":"(1.35*28.83)+(1.18*26)+(1.45*10)+(2.05*34)+(2.9*46.3)","v":288.07049999999998},null,null,{"$f":"ROUND(D14*E14,2)","v":0}]
[3,"DEMOLICION DE BANQUETAS Y/O RAMPAS  DE MAMPOSTERIA EXISTENTES PARA COLOCACION DE ALUMBRADO PUBLICO. INCLUYE: CORTE CON CORTADORA DE DISCO, LIMPIEZA, CARGA Y ACOPIO DE PIEDRA PARA SU REUTILIZACION DENTRO DE LA OBRA HASTA EL LUGAR INDICADO POR LA SUPERVISION, LA MANO DE OBRA, HERRAMIENTA Y EQUIPO NECESARIO.","M2",{"$f":"(((1.25*1.5)+(1.55*1.5))*5)+25.512","v":46.512},null,null,{"$f":"ROUND(D15*E15,2)","v":0}]
[4,"DEMOLICIÓN POR MEDIOS MANUALES Y/O MECÁNICOS DE PAVIMENTO ASFALTICO, EXISTENTE EN MAL ESTADO DE HASTA 10 CM DE ESPESOR (INCLUYENDO LA EXTRACCIÓN, ACOPIO, CARGA Y ACARREOS DE LOS MATERIALES PRODUCTO DE LA DEMOLICIÓN, FUERA DE LA OBRA HASTA EL TIRADERO AUTORIZADO, SEGÚN LO INDIQUE LA SUPERVISIÓN). LA RECUPERACIÓN DE LA BASE HIDRÁULICA EXISTENTE DE HASTA 20 CMS DE ESPESOR COMPACTOS APROXIMADOS. INCLUYE: BARRIDO Y LIMPIEZA PREVIA (RETIRO DE LOS MATERIALES FUERA DE LA OBRA), DISGREGADO, ACAMELLONADO, CARGA Y ACARREOS DEL MATERIAL DE BASE HIDRÁULICA RECUPERADO, FUERA DE LA OBRA HASTA DONDE LO INDIQUE LA SUPERVISIÓN, PARA SU ALMACENAJE Y POSTERIOR REUTILIZACIÓN, EN ZONAS DE CRUCEROS CON OTRAS AVENIDAS REALIZAR EL CORTE PREVIO CON DISCO DE 3 MM. (1/8”) DE ANCHO, CON CORTADORA EN PAVIMENTO DE CONCRETO HIDRÁULICO Y/O ASFALTO, PARA EL PERFILADO DE LOSAS EN BOCACALLES, LOS MATERIALES, LA MANO DE OBRA, HERRAMIENTA Y EQUIPO NECESARIO.","M2",1893.93,null,null,{"$f":"ROUND(D16*E16,2)","v":0}]
[5,"DEMOLICIÓN POR MEDIOS MANUALES Y/O MECÁNICOS DE PAVIMENTO DE HIDRAULICO  (SIMPLE O REFORZADO), EXISTENTE EN MAL ESTADO DE HASTA 20 CM DE ESPESOR (INCLUYENDO LA EXTRACCIÓN, ACOPIO, CARGA Y ACARREOS DE LOS MATERIALES PRODUCTO DE LA DEMOLICIÓN, FUERA DE LA OBRA HASTA EL TIRADERO AUTORIZADO, SEGÚN LO INDIQUE LA SUPERVISIÓN). LA RECUPERACIÓN DE LA BASE HIDRÁULICA EXISTENTE DE HASTA 20 CMS DE ESPESOR COMPACTOS APROXIMADOS. INCLUYE: BARRIDO Y LIMPIEZA PREVIA (RETIRO DE LOS MATERIALES FUERA DE LA OBRA), DISGREGADO, ACAMELLONADO, CARGA Y ACARREOS DEL MATERIAL DE BASE HIDRÁULICA RECUPERADO, FUERA DE LA OBRA HASTA DONDE LO INDIQUE LA SUPERVISIÓN, PARA SU ALMACENAJE Y POSTERIOR REUTILIZACIÓN, EN ZONAS DE CRUCEROS CON OTRAS AVENIDAS REALIZAR EL CORTE PREVIO CON DISCO DE 3 MM. (1/8”) DE ANCHO, CON CORTADORA EN PAVIMENTO DE CONCRETO HIDRÁULICO Y/O ASFALTO, PARA EL PERFILADO DE LOSAS EN BOCACALLES, LOS MATERIALES, LA MANO DE OBRA, HERRAMIENTA Y EQUIPO NECESARIO.","M3",210.44,null,null,{"$f":"ROUND(D17*E17,2)","v":0}]
[null,null,null,null,null,"SUB TOTAL :  PRELIMINARES EN SEÑALAMIENTO",{"$f":"SUM(G13:G17)","v":0}]
["II.- GUARNICIONES"]
[6,"GUARNICION DE CONCRETO F´c=150 kg/cm2. R.N. T.M.A. 19 MM. DE 15X20X40 CM DE SECCION TRAPEZOIDAL, CON JUNTAS DE EXPANSION A CADA 4.50 M. CON CARTON ASFALTADO DE 3/8\" DE ESPESOR. INCLUYE: CIMBRA, DESCIMBRADO, ELABORACION, COLADO, VIBRADO Y CURADO DEL CONCRETO,  TRANSPORTE A LA SIGUIENTE POSICION, MATERIALES, MANO DE OBRA Y HERRAMIENTA.","ML",{"$f":"40+60","v":100},null,null,{"$f":"ROUND(D20*E20,2)","v":0}]
[null,null,null,null,null,"SUB TOTAL GUARNICIONES",{"$f":"SUM(G20:G20)","v":0}]
["III.- CONSTRUCCION DE BANQUETAS"]
[7,"EXCAVACION EN CORTE EN MATERIAL INVESTIGADO EN OBRA, EN AREAS DE BANQUETAS, GUARNICIONES, RAMPAS Y ADYACENTES, PARA DAR NIVELES DE PROYECTO. INCLUYE: TRAZO Y NIVELACION, CARGA, ACARREOS DENTRO Y FUERA DE LA OBRA DEL MATERIAL NO UTILIZABLE HASTA EL LUGAR INDICADO POR SUPERVISION, LA MANO DE OBRA, HERRAMIENTA Y EQUIPO NECESARIO.","M3",{"$f":"(475*0.4)*0.6","v":114},null,null,{"$f":"ROUND(D23*E23,2)","v":0}]
[8,"RELLENO COMPACTADO CON EQUIPO MECANICO CON MATERIAL SELECCIONADO PRODUCTO DE BANCO, LIBRE DE BOLEO MAYOR DE 3\", EN CAPAS DE 20 CM, COMPACTADO AL 85% PROCTOR, EN AREAS DE BANQUETAS Y ADYACENTES, PARA DAR NIVELES DE PROYECTO, SEGUN INDICACIONES DE SUPERVISION. INCLUYE: CRIBADO DEL MATERIAL, ACARREOS DENTRO DE LA OBRA, INCORPORACION DE HUMEDAD, MANO DE OBRA, HERRAMIENTA Y EQUIPO NECESARIO. ","M3",{"$f":"(475*0.2)*0.4","v":38},null,null,0]
[9,"CONSTRUCCION DE BANQUETAS DE 8 CM DE ESPESOR, ACABADO, ESTAMPADO EN COLOR GRIS NATURAL CON APLICACION DE SELLADOR , EN LOSAS DE 1.50 M DE ANCHO EN PROMEDIO, SE USARA EL SISTEMA DE LOSAS INTERCALADAS CON UNA RELACION LARGO/ANCHO DE HASTA 1.25, JUNTAS FRIAS ACABADO CON VOLTEADOR.  EL CONCRETO SERA F´c= 150 KG/CM2. T.M.A. 3/4\". REV. DE 8 A 10 CM PREMEZCLADO ELABORADO EN PLANTA,  REFORZADO CON MALLA ELECTRO SOLDADA 6-6/10X10INCLUYE: SUMINISTRO, COLADO, EXTENDIDO, VIBRADO Y ACARREOS DEL CONCRETO, DESMOLDANTE,  SUMINISTRO Y APLICACIÓN DE CURACRETO EN COLOR BLANCO MARCA PASA O SIKA, CON EL EQUIPO ADECUADO, Y EN LA PROPORCION INDICADA POR EL FABRICANTE, LIMPIEZA PARA APLICACION DE SELLADOR Y/O ACIDO PARA DECOLORCION, CIMBRA EN FRONTERAS, NIVELACION, AFINE, COMPACTACION AL 95 % EN UN ESPESOR DE 15 CM Y PREPARACION DE LA SUPERFICIE DEL TERRENO, ACARREOS DE LOS MATERIALES DENTRO DE LA OBRA, LIMPIEZA GENERAL ANTES Y UNA VEZ CONCLUIDOS LOS TRABAJOS, CARGA Y ACARREO DE LOS MATERIALES NO UTILIZABLES HASTA EL LUGAR INDICADO POR SUPERVISION, TRAZO Y NIVELACION, LOS MATERIALES, MANO DE OBRA,  HERRAMIENTA Y EQUIPO NECESARIO..","M2",{"$f":"290-(25*2.05)-(5*2.9)+((23.5-(2*3))*2.9)+((52.3-(3*3))*1.3)+((40-(3*3))*1.2)","v":368.49},null,null,0]
[10,"CONSTRUCCION DE BANQUETAS DE 8 CM DE ESPESOR ARMADA CON MALLA-LAC 6x6-10/10, ACABADO, PULIDO Y RAYADO ESCOBILLADO, EN LOSAS DE 1.50 M DE ANCHO EN PROMEDIO, SE USARA EL SISTEMA DE LOSAS INTERCALADAS CON UNA RELACION LARGO/ANCHO DE HASTA 1.50, JUNTAS FRIAS ACABADO CON VOLTEADOR.  EL CONCRETO SERA F´c= 150 KG/CM2. T.M.A. 3/4\". REV. DE 8 A 10 CM PREMEZCLADO ELABORADO EN PLANTA,  INCLUYE: REFORZADO CON MALLA ELECTROSOLDADA 6-6/10-10, CIMBRA APARENTE EN FRONTERA, SUMINISTRO DE MATERIALES, COLADO, EXTENDIDO, VIBRADO Y ACARREOS DEL CONCRETO, SUMINISTRO Y APLICACIÓN DE CURACRETO EN COLOR BLANCO MARCA PASA, SIKA O SIMILAR EN CALIDAD Y PRECIO, CON EL EQUIPO ADECUADO, Y EN LA PROPORCION INDICADA POR EL FABRICANTE, CIMBRA EN FRONTERAS, NIVELACION, AFINE, COMPACTACION AL 95 % EN UN ESPESOR DE 15 CM Y PREPARACION DE LA SUPERFICIE DEL TERRENO, ACARREOS DE LOS MATERIALES  DENTRO DE LA OBRA, LIMPIEZA GENERAL  ANTES Y UNA VEZ CONCLUIDOS LOS TRABAJOS, CARGA Y ACARREO DE LOS MATERIALES NO UTILIZABLES HASTA EL LUGAR INDICADO POR SUPERVISION, TRAZO Y NIVELACION, LOS MATERIALES, MANO DE OBRA, HERRAMIENTA Y EQUIPO NECESARIO. P.U.O.T.NOTA: EL LICITANTE DEBERA DE CONSIDERAR LAS PRUEBAS DE LABORATORIO RESPECTIVAS EFECTUADAS POR UN LABORATORIO EXTERNO AL MISMO Y PRESENTARSE AL MOMENTO DE REALIZAR EL TRAMITE PARA EL PAGO DE ESTIMACIONES","M2",60,null,null,0]
[11,"CONSTRUCCION DE BANQUETAS DE 10 CM DE ESPESOR, ACABADO, ESTAMPADO EN COLOR GRIS NATURAL CON APLICACION DE SELLADOR , EN LOSAS DE 1.50 M DE ANCHO EN PROMEDIO, SE USARA EL SISTEMA DE LOSAS INTERCALADAS CON UNA RELACION LARGO/ANCHO DE HASTA 1.25, JUNTAS FRIAS ACABADO CON VOLTEADOR.  EL CONCRETO SERA F´c= 200 KG/CM2. T.M.A. 3/4\". REV. DE 8 A 10 CM PREMEZCLADO ELABORADO EN PLANTA,  REFORZADO CON MALLA ELECTRO SOLDADA 6-6/10X10 INCLUYE: SUMINISTRO, COLADO, EXTENDIDO, VIBRADO Y ACARREOS DEL CONCRETO, DESMOLDANTE,  SUMINISTRO Y APLICACIÓN DE CURACRETO EN COLOR BLANCO MARCA PASA O SIKA, CON EL EQUIPO ADECUADO, Y EN LA PROPORCION INDICADA POR EL FABRICANTE, LIMPIEZA PARA APLICACION DE SELLADOR Y/O ACIDO PARA DECOLORCION, CIMBRA EN FRONTERAS, NIVELACION, AFINE, COMPACTACION AL 95 % EN UN ESPESOR DE 15 CM Y PREPARACION DE LA SUPERFICIE DEL TERRENO, ACARREOS DE LOS MATERIALES DENTRO DE LA OBRA, LIMPIEZA GENERAL ANTES Y UNA VEZ CONCLUIDOS LOS TRABAJOS, CARGA Y ACARREO DE LOS MATERIALES NO UTILIZABLES HASTA EL LUGAR INDICADO POR SUPERVISION, TRAZO Y NIVELACION, LOS MATERIALES, MANO DE OBRA,  HERRAMIENTA Y EQUIPO NECESARIO..","M2",{"$f":"(25*2.05)+(5*2.9)+((2*3)*2.9)+((3*3)*1.3)+((3*3)*1.2)","v":105.65},null,null,0]
[12,"FABRICACION DE RAMPAS PARA EL ACCESO DE PERSONAS CON CAPACIDADES DIFERENTES, DE CONCRETO DE 8 CM DE ESPESOR Y CON UNA PENDIENTE MAXIMA DEL 8%, ACABADO PULIDO Y RAYADO TRANSVERSAL CON PEINE METALICO PARA DAR ACABADO ANTIDERRAPANTE, EN LOSAS DE 1.20 M. DE ANCHO COMO MINIMO. CON BORDES LATERALES DE 10 CM DE ALTURA Y 10 CM DE ANCHO DE CONCRETO, EN EL DESARROLLO LONGITUDINAL DE LA RAMPA, ACABADO EN ARISTAS CON VOLTEADOR. EL CONCRETO SERA F´c=150 KG/CM2. T.M.A. 3/4\". REV. DE 8 A 10 CM. PREMEZCLADO ELABORADO EN PLANTA. INCLUYE: SUMINISTRO, COLADO, EXTENDIDO, VIBRADO Y ACARREOS DEL CONCRETO, SUMINISTRO Y APLICACION DE CURACRETO EN COLOR BLANCO MARCA PASA O SIKA, CON EL EQUIPO ADECUADO, Y EN LA PROPORCION INDICADA POR EL FABRICANTE, CIMBRA EN FRONTERAS, NIVELACION, AFINE, COMPACTACION AL 95 % EN UN ESPESOR DE 15 CM Y PREPARACION DE LA SUPERFICIE DEL TERRENO, ACARREOS DE LOS MATERIALES DENTRO DE LA OBRA, LIMPIEZA GENERAL ANTES Y UNA VEZ CONCLUIDOS LOS TRABAJOS, CARGA Y ACARREOS DE LOS MATERIALES NO UTILIZABLES HASTA EL LUGAR INDICADO POR SUPERVISION, TRAZO Y NIVELACION, MATERIALES, MANO DE OBRA, HERRAMIENTA Y EQUIPO NECESARIO. U.O.T. (NOTA: EL LICITANTE DEBERA DE CONSIDERAR LAS PRUEBAS DE LABORATORIO RESPECTIVAS, EFECTUADAS POR UN LABORATORIO EXTERNO AL MISMO Y PRESENTARSE AL MOMENTO DE REALIZAR EL TRAMITE PARA EL PAGO DE ESTIMACIONES).","M2",36,null,null,0]
[13,"CONSTRUCCION DE BANQUETA A BASE DE EMPEDRADO CON PRODUCTO RECUPERADO DE LA DEMOLICION EN AREAS PARA LUMINARIAS, TOMAS Y REGISTROS, ACENTADO Y EMBOQUILLADO CON MORTERO CEMENTO-ARENA PROPORCIÓN DE 1:3,  INCLUYE MATERIALES MANOS DE OBRA HERRAMIENTA Y EQUIPO MENOR.","M2",{"$f":"((1.25*1.5)+(1.55*1.5))*5","v":21},null,null,0]
[null,null,null,null,null,"SUB TOTAL CONSTRUCCION DE BANQUETAS",{"$f":"SUM(G23:G29)","v":0}]
["IV.- RED DE AGUA POTABLE"]
[14,"TRAZO Y NIVELACION DE RED GENERAL DE AGUA POTABLE CON APARATOS TOPOGRAFICOS DE PRECISION, ESTABLECIENDO  NIVELES  Y   REFERENCIAS, AL INICIO Y DURANTE EL PROCESO DE LA OBRA INCLUYE:   ESTACAS,  MOJONERAS,   BANCO  DE NIVEL, MATERIALES, MANO DE OBRA, EQUIPO Y HERRAMIENTA.","ML",262,null,null,{"$f":"ROUND(D32*E32,2)","v":0}]
[{"$f":"A32+1","v":15},"EXCAVACION POR MEDIOS MECANICOS DE ZANJAS EN MATERIAL TIPO \"II\"  DE 0 A 2 MTS. DE PROFUNDIDAD, INCLUYE: EQUIPO, HERRAMIENTA, MANO DE OBRA Y MATERIALES.","M3",{"$f":"262*0.7*1","v":183.39999999999998},null,null,{"$f":"ROUND(D33*E33,2)","v":0}]
[{"$f":"A33+1","v":16},"SUMINISTRO Y COLOCACION DE TUBO DE PVC HIDRAULICO SERIE INGLESA RD 32.5 DE 6\" (150 MM) DE DIAMETRO, INCLUYE: AFINE DE FONDO Y TALUDES DE CEPAS, COMPACTACION DE FONDO EN ZANJAS, SUMINISTRO Y COLOCACION DE CAMA DE ARENA, NIVELACION DE TUBERIA PARA DAR PENDIENTES DE PROYECTO, SUMINISTRO Y COLOCACION DE CINTA DE PRECAUCION O PELIGRO, ACOSTILLADO, MATERIALES, MANO DE OBRA, EQUIPO Y HERRAMIENTA.","ML",275,null,null,{"$f":"ROUND(D34*E34,2)","v":0}]
[17,"SUMINISTRO E INSTALACION DE JUNTA GIBAUL DE 6\" DE DIAMETRO SEGÚN TUBERIA EXISTENTE PARA INTERCONEXION DE LINEA DE CONDUCCION DE AGUA POTABLE. INCLUYE: MANIOBRAS, INSTALACION, LIMPIEZA, PRUEBA HIDRAULICA, MANO DE OBRA Y HERRAMIENTA.","PZA",2,null,null,0]
[18,"SUMINISTRO Y COLOCACION DE EXTREMIDAD ESPIGA  DE PVC HIDRAULICO DE 6\" (150 MM), INCLUYE: MATERIALES, MANO DE OBRA, HERRAMIENTA Y EQUIPO.","PZA",1,null,null,0]
[19,"SUMINISTRO Y COLOCACION DE VALVULA DE SECCIONAMIENTO TIPO COMPUERTA DE VASTAGO FIJO DE 6\" (150 MM), INCLUYE: MANO DE OBRA, EQUIPO, MATERIALES Y HERRAMIENTA.","PZA",1,null,null,0]
[20,"SUMINISTRO Y COLOCACION DE EXTREMIDAD CAMPANA DE PVC HIDRAULICO DE 6\" (150 MM), INCLUYE: MATERIALES, MANO DE OBRA, HERRAMIENTA Y EQUIPO.","PZA",1,null,null,0]
[21,"SUMINISTRO Y COLOCACION DE TORNILLOS CON CABEZA Y TUERCA HEXAGONAL DE 5/8\" x 2 1/2\", INCLUYE: MANO DE OBRA, MATERIALES, EQUIPO Y HERRAMIENTA.","PZA",24,null,null,0]
[22,"SUMINISTRO Y COLOCACION DE EMPAQUES DE NEOPRENO DE 6\"  (150MM) INCLUYE: MATERIALES, MANO DE OBRA, EQUIPO Y HERRAMIENTA.","PZA",2,null,null,0]
[23,"CONSTRUCCION DE CAJA DE OPERACION DE VALVULAS TIPO 12 DE 1.48X1.48 A BASE DE FIRME DE CONCRETO ARMADO, MUROS DE BLOCK 12X20X40CM, APLANADO CEMENTO-ARENA 1:3, Y LOSA DE CONCRETO ARMADO, INCLUYE: EXACAVACION, AFINE DE FONDO, RELLENO, MATERIALES, MANO DE OBRA, HERRAMIENTA Y EQUIPO.","PZA",1,null,null,{"$f":"ROUND(D41*E41,2)","v":0}]
[24,"FABRICACION DE BROCAL  Y COLOCACION DE LOSA  TAPA PARA CAJA DE OPERACIÓN DE VALVULAS CON TAPA Fo. Fo. VALIDADA POR SAPA. CENTRADA PARA CAJA TIPO 12, INCLUYE: MATERIALES, MANO DE OBRA, EQUIPO Y HERRAMIENTA.","PZA",3,null,null,{"$f":"ROUND(D42*E42,2)","v":0}]
[25,"SUMINISTRO Y COLOCACION DE TUBO DE PVC HIDRAULICO SERIE INGLESA RD 32.5 DE 3\" (75 MM) DE DIAMETRO, INCLUYE:  AFINE DE FONDO Y TALUDES DE CEPAS, COMPACTACION DE FONDO EN ZANJAS, SUMINISTRO Y COLOCACION DE CAMA DE ARENA, NIVELACION DE TUBERIA PARA DAR PENDIENTES DE PROYECTO, SUMINISTRO Y COLOCACION DE CINTA DE PRECAUCION O PELIGRO, MATERIALES, MANO DE OBRA, EQUIPO Y HERRAMIENTA.","ML",{"$f":"D34","v":275},null,null,0]
[26,"SUMINISTRO E INSTALACION DE JUNTA GIBAUL DE 3\" DE DIAMETRO SEGÚN TUBERIA EXISTENTE PARA INTERCONEXION DE LINEA DE CONDUCCION DE AGUA POTABLE. INCLUYE: MANIOBRAS, INSTALACION, LIMPIEZA, PRUEBA HIDRAULICA, MANO DE OBRA Y HERRAMIENTA.","PZA",2,null,null,0]
[27,"SUMINISTRO Y COLOCACION DE EXTREMIDAD ESPIGA  DE PVC HIDRAULICO DE 3\" (75 MM), INCLUYE: MATERIALES, MANO DE OBRA, HERRAMIENTA Y EQUIPO.","PZA",3,null,null,0]
[28,"SUMINISTRO Y COLOCACION DE VALVULA DE SECCIONAMIENTO TIPO COMPUERTA DE VASTAGO FIJO DE 3\" (75 MM), INCLUYE: MANO DE OBRA, EQUIPO, MATERIALES Y HERRAMIENTA.","PZA",3,null,null,0]
[29,"FABRICACION DE BROCAL  Y COLOCACION DE LOSA  TAPA PARA CAJA DE OPERACIÓN DE VALVULAS CON TAPA Fo. Fo. VALIDADA POR SAPA. CENTRADA PARA CAJA TIPO 2, INCLUYE: MATERIALES, MANO DE OBRA, EQUIPO Y HERRAMIENTA.","PZA",3,null,null,0]
[30,"CONSTRUCCION DE CAJA DE OPERACIÓN DE VALVULAS DE TIPO 2 DE 1.28 x 1.18 M A BASE DE FIRME DE CONCRETO ARMADO, MUROS DE TABIQUE 5 x 12 x 24 CM, APLANADO INTERIOR CEMENO-ARENA 1:3, Y LOSA DE CONCRETO ARMADO, INCLUYE: EXCAVACION, AFINE DE FONDO, RELLENO, MATERIALES, MANO DE OBRA, HERRAMIENTA Y EQUIPO.","PZA",3,null,null,0]
[31,"SUMINISTRO Y COLADO DE CONCRETO PARA ATRAQUES EN CAMBIOS DE DIRECCION O CRUCEROS, INCLUYE: CIMBRA COMUN, MATERIALES, MANO DE OBRA, HERRRAMIENTA Y EQUIPO.","M3",{"$f":"0.3*0.6*0.6*10","v":1.08},null,null,0]
[32,"SUMINISTRO Y COLOCACION DE TORNILLOS CON CABEZA Y TUERCA HEXAGONAL DE 5/8\" x 2 1/2\", INCLUYE: MANO DE OBRA, MATERIALES, EQUIPO Y HERRAMIENTA.","PZA",{"$f":"16*3","v":48},null,null,0]
[33,"RELLENO COMPACTADO CON EQUIPO MECANICO MANUAL EN CAPAS DE 20 CM EN CEPA CON MATERIAL SELECCIONADO PRODUCTO DE LA EXCAVACION (CRIBADO POR LA MALLA DE 2 1/2\") LIBRE DE BOLEO MAYOR DE 3\" , COMPACTADO AL 90% PROCTOR. INCLUYE: CRIBADO DEL MATERIAL, ACARREOS DENTRO DE LA OBRA, INCORPORACION DE  HUMEDAD, MANO DE OBRA, HERRAMIENTA Y EQUIPO NECESARIO. \n","M3",84,null,null,0]
[34,"RELLENO COMPACTADO CON EQUIPO MECANICO MANUAL EN CAPAS DE 20 CM EN CEPA CON MATERIAL SELECCIONADO PRODUCTO DE BANCO LIBRE DE BOLEO MAYOR DE 3\" , COMPACTADO AL 90% PROCTOR. INCLUYE: CRIBADO DEL MATERIAL, ACARREOS DENTRO DE LA OBRA, INCORPORACION DE HUMEDAD, MANO DE OBRA, HERRAMIENTA Y EQUIPO NECESARIO. \n","M3",36,null,null,0]
[35,"CARGA MECANICA Y ACARREO DE MATERIAL PRODUCTO DE LA EXCAVACION DENTRO DE OBRA DE LA RED GENERAL DE AGUA POTABLE , INCLUYE: MANO DE OBRA, EQUIPO Y HERRAMIENTA. (INTERNO)","M3",65,null,null,0]
[36,"SUMINISTRO Y COLOCACION  DE TEE DE PVC HIDRAULICO DE 3\" x 3\" (75 x 75 MM), INCLUYE:  MATERIALES, MANO DE OBRA, HERRAMIENTA Y EQUIPO.","PZA",2,null,null,0]
[37,"SUMINISTRO Y COLOCACION DE CODO DE PVC HIDRAULICO DE 90X3\", INCLUYE: MATERIALES, MANO DE OBRA, EQUIPO Y HERRAMIENTA","PZA",1,null,null,0]
[38,"SUMINISTRO Y COLOCACION DE EXTREMIDAD CAMPANA DE PVC HIDRAULICO DE 3\"(75MM), INCLUYE: MATERIALES, MANO DE OBRA, HERRAMIENTA Y EQUIPO.","PZA",1,null,null,0]
[39,"SUMINISTRO Y COLOCACION DE EMPAQUES DE NEOPRENO DE 3\" (100MM) INCLUYE: MATERIALES, MANO DE OBRA, EQUIPO Y HERRAMIENTA.","PZA",{"$f":"3*2","v":6},null,null,0]
[40,"CONSTRUCCION DE ATRAQUES DE CONCRETO F´C=200 KG/CM2, PARA TUBO DE 60X60X30 CM, INCLUYE: MATERIAL, MANO DE OBRA, EQUIPO Y HERRAMIENTA","M3",1,null,null,0]
[41,"CARGA Y ACARREO POR MEDIOS MECANICOS DEL MATERIAL PRODUCTO DE EXCAVACION NO UTILIZABLE PARA EL PRIMER KILOMETRO DE DISTANCIA. INCLUYE EL EQUIPO NECESARIO.","M3",{"$f":"D33*0.25","v":45.849999999999994},null,null,0]
[42,"ACARREO  EN CAMION DEL MATERIAL PRODUCTO DEL CORTE PARA KILOMETROS SUBSECUENTES. (6 KM). INCLUYE: EL EQUIPO NECESARIO.","M3-KM",{"$f":"D59*6","v":275.09999999999997},null,null,0]
[null,null,null,null,null,"SUB TOTAL RED DE AGUA POTABLE",{"$f":"SUM(G32:G60)","v":0}]
["V.- TOMAS DOMICILIARIAS"]
[43,"EXCAVACION POR MEDIOS MECANICOS DE ZANJAS EN MATERIAL TIPO \"II\"  DE 0 A 2 MTS. DE PROFUNDIDAD, INCLUYE: EQUIPO, HERRAMIENTA, MANO DE OBRA Y MATERIALES.","M3",103.6,null,null,{"$f":"ROUND(D63*E63,2)","v":0}]
[44,"\"TOMA DE AGUA POTABLE DE 4\"\"x1/2\"\" CON TUBO KITEC DE 1/2\"\" DE DIAMETRO. INCLUYE: ABRAZADERA DE PVC TIPO-II. C/VALVULA DE INSER.Y SACABOCADO INTEGRADO FLOTAP DE 3\"\"x3/4\"\", REDUCCION DE 3/4\"\" A 1/2\"\", INSERTOS Y CONECTORES PARA KITEC, TUBO KITEC DE 1/2\"\" DE DIAM. VALVULA DE ANGULO TIPO BOLA, VALVULA MUNICIPAL DE BLOQUEO SENCILLO,  CAJA DE PROTECCION DE PVC DE COLOR NEGRO REFORZADA DE 5 KG DE PESO (CON UNA RESISTENCIA MAXMA DE 4000 KG); CON LAS SIGUIENTES MEDIDAS: EN LA PARTE SUPERIOR DE 34x21 CM. Y BASE DE 42x30 CM. (INCLUYE CEJA PERIMETRAL DE 1.5 CM DE ANCHO Y 2.5 CM DE ESPESOR). CON ALTURA TOTAL DE 18.50 CM. OLOCADA SOBRE PLANTILLA DE MORTERO DE CEMENTO-ARENA 1:3 DE 6 CM DE ESPESOR, REVIO EL NIVELADO Y COMPACTACION DEL TERRENO NATURAL.MATERIALES, MANO DE OBRA Y HERRAMIENTA. PARA RED DE AGUA POTABLE DE PVC HIDRAULICO DE 4\"\" ( 101 MM) DE DIAMETRO.SONDEOS PARA LOCALIZACION DE LA TOMA,  DEMOLICIONES NECESARIAS PARA SU INSTALACION, REPARACION PROVISIONAL DE TOMA DOMICILIARIA; INTERCONEXIONES EN TUBO DE COBRE, MANGUERA HIDRAULICA Y/O P.V.C. HIDRAULICO CED. 40 SEGUN SEA EL CASO. U.O.T.(LONGITUD DE 8.00 M)\"","PZA",12,null,null,{"$f":"ROUND(D64*E64,2)","v":0}]
[45,"\"TOMA DE AGUA POTABLE DE 4\"\"x1/2\"\" CON TUBO KITEC DE 1/2\"\" DE DIAMETRO. INCLUYE: ABRAZADERA DE PVC TIPO-II. C/VALVULA DE INSER.Y SACABOCADO INTEGRADO FLOTAP DE 3\"\"x3/4\"\",  EDUCCION DE 3/4\"\" A 1/2\"\", INSERTOS Y CONECTORES PARA KITEC, TUBO KITEC DE 1/2\"\" DE DIAM. VALVULA DE ANGULO TIPO BOLA, VALVULA MUNICIPAL DE BLOQUEO SENCILLO,  CAJA DE PROTECCION DE PVC DE COLOR NEGRO REFORZADA DE 5 KG DE PESO (CON UNA RESISTENCIA MAXMA DE 4000 KG); CON LAS SIGUIENTES MEDIDAS: EN LA PARTE SUPERIOR DE 34x21 CM. Y BASE DE 42x30 CM. (INCLUYE CEJA PERIMETRAL DE 1.5 CM DE ANCHO Y 2.5 CM DE ESPESOR). CON ALTURA TOTAL DE 18.50 CM. COLOCADA SOBRE PLANTILLA DE MORTERO DE CEMENTO-ARENA 1:3 DE 6 CM DE ESPESOR, PREVIO EL NIVELADO Y COMPACTACION DEL TERRENO NATURAL. MATERIALES, MANO DE OBRA Y HERRAMIENTA. PARA RED DE AGUA POTABLE DE PVC HIDRAULICO DE 4\"\" ( 101 MM) DE DIAMETRO.SONDEOS PARA LOCALIZACION DE LA TOMA,  DEMOLICIONES NECESARIAS PARA SU INSTALACION, REPARACION PROVISIONAL DE TOMA DOMICILIARIA; INTERCONEXIONES EN TUBO DE COBRE, MANGUERA HIDRAULICA Y/O P.V.C. HIDRAULICO CED. 40 SEGUN SEA EL CASO. U.O.T.(LONGITUD DE 4.00 M)\"","PZA",13,null,null,0]
[46,"RELLENO COMPACTADO CON EQUIPO MECANICO MANUAL EN CAPAS DE 20 CM EN CEPA CON MATERIAL SELECCIONADO PRODUCTO DE LA EXCAVACION (CRIBADO POR LA MALLA DE 2 1/2\") LIBRE DE BOLEO MAYOR DE 3\" , COMPACTADO AL 90% PROCTOR. INCLUYE: CRIBADO DEL MATERIAL, ACARREOS DENTRO DE LA OBRA, INCORPORACION DE  HUMEDAD, MANO DE OBRA, HERRAMIENTA Y EQUIPO NECESARIO. \n","M3",82.88,null,null,0]
[47,"RELLENO COMPACTADO CON EQUIPO MECANICO MANUAL EN CAPAS DE 20 CM EN CEPA CON MATERIAL SELECCIONADO PRODUCTO DE BANCO LIBRE DE BOLEO MAYOR DE 3\" , COMPACTADO AL 90% PROCTOR. INCLUYE: CRIBADO DEL MATERIAL, ACARREOS DENTRO DE LA OBRA, INCORPORACION DE HUMEDAD, MANO DE OBRA, HERRAMIENTA Y EQUIPO NECESARIO. \n","M3",20.72,null,null,0]
[48,"CARGA MECANICA Y ACARREO DE MATERIAL PRODUCTO DE LA EXCAVACION DE LA RED GENERAL DE ALCANTARILLADO SANITARIO ","M3",20.72,null,null,0]
[49,"COLOCACION DE DETALLADO DE CUADRO DE MEDICION DE AGUA POTABLE, INLCLUYE: MATERIALES, MANO DE OBRA, EQUIPO Y HERRAMIENTA.","PZA",25,null,null,0]
[null,null,null,null,null,"SUB TOTAL TOMAS DOMICILIARIAS",{"$f":"SUM(G63:G69)","v":0}]
["VI.- RED DE ALCANTARILLADO SANITARIO"]
[50,"TRAZO Y NIVELACION DE RED GENERAL DE ALCANTARILLADO SANITARIO CON APARATOS TOPOGRAFICOS DE PRECISION, ESTABLECIENDO  NIVELES  Y   REFERENCIAS, AL INICIO Y DURANTE EL PROCESO DE LA OBRA INCLUYE:   ESTACAS,  MOJONERAS,   BANCO  DE NIVEL, MATERIALES, MANO DE OBRA, EQUIPO Y HERRAMIENTA.","ML",262,null,null,{"$f":"ROUND(D72*E72,2)","v":0}]
[51,"EXCAVACION POR MEDIOS MECANICOS DE ZANJAS EN MATERIAL TIPO \"II\"  DE 0 A 2 MTS. DE PROFUNDIDAD, INCLUYE: EQUIPO, HERRAMIENTA, MANO DE OBRA Y MATERIALES.","M3",{"$f":"262*0.8*1.2","v":251.52},null,null,0]
[52,"SUMINISTRO Y COLOCACIÓN DE TUBERÍA DE PVC SANITARIO RD-35 DE 8\" DE DIAMETRO (200 MM), INCLUYE: AFINE DE FONDO Y TALUDES DE CEPAS, COMPACTACION DE FONDO EN ZANJAS, SUMINISTRO Y COLOCACION DE CAMA DE ARENA, NIVELACION DE TUBERIA PARA DAR PENDIENTES DE PROYECTO,ACOSTILLADO,  SUMINISTRO Y COLOCACION DE CINTA DE PRECAUCION O PELIGRO, MATERIALES, MANO DE OBRA, HERRAMIENTA Y EQUIPO.","ML",{"$f":"D72","v":262},null,null,0]
[53,"RELLENO COMPACTADO CON EQUIPO MECANICO MANUAL EN CAPAS DE 20 CM EN CEPA CON MATERIAL SELECCIONADO PRODUCTO DE LA EXCAVACION (CRIBADO POR LA MALLA DE 2 1/2\") LIBRE DE BOLEO MAYOR DE 3\" , COMPACTADO AL 90% PROCTOR. INCLUYE: CRIBADO DEL MATERIAL, ACARREOS DENTRO DE LA OBRA, INCORPORACION DE  HUMEDAD, MANO DE OBRA, HERRAMIENTA Y EQUIPO NECESARIO. ","M3",{"$f":"+D72*0.75","v":196.5},null,null,0]
[54,"RELLENO COMPACTADO CON EQUIPO MECANICO MANUAL EN CAPAS DE 20 CM EN CEPA CON MATERIAL SELECCIONADO PRODUCTO DE BANCO LIBRE DE BOLEO MAYOR DE 3\" , COMPACTADO AL 90% PROCTOR. INCLUYE: CRIBADO DEL MATERIAL, ACARREOS DENTRO DE LA OBRA, INCORPORACION DE HUMEDAD, MANO DE OBRA, HERRAMIENTA Y EQUIPO NECESARIO. \n","M3",{"$f":"+D72*0.25","v":65.5},null,null,0]
[55,"CARGA MECANICA Y ACARREO DE MATERIAL PRODUCTO DE LA EXCAVACION DE LA RED GENERAL DE ALCANTARILLADO SANITARIO ","M3",{"$f":"+D76","v":65.5},null,null,0]
[56,"CONSTRUCCION DE POZO DE VISITA  DE ALTURA VARIABLE A BASE DE LOSA DE PISO DE CONCRETO ARMADO DE 15CM DE ESPESOR, PAREDES DE CUÑA TRAPEZOIDAL Y APLANADO CON MORTERO CEMENTO-ARENA 1:3 ACABADO FINO, INCLUYE: MANO DE OBRA, EQUIPO, MATERIALES Y HERRAMIENTA.","PZA",4,null,null,0]
[57,"SUMINISTRO Y COLOCACION  DE TAPA DE Fo. Fo. Y FABRICACION DE LOSA TAPA, INCLUYE, ENRRACE Y NIVELACION DE POZO DE VISITA, MATERIALES, MANO DE OBRA, EQUIPO Y HERRAMIENTA.","JGO",4,null,null,0]
[null,null,null,null,null,"SUB TOTAL RED DE ALCANTARILLADO SANITARIO",{"$f":"SUM(G72:G79)","v":0}]
["VII.- DESCARGAS DOMICILIARIAS"]
[58,"EXCAVACION POR MEDIOS MECANICOS DE ZANJAS EN MATERIAL TIPO \"II\"  DE 0 A 2 MTS. DE PROFUNDIDAD, INCLUYE: EQUIPO, HERRAMIENTA, MANO DE OBRA Y MATERIALES.","M3",7.875,null,null,{"$f":"ROUND(D82*E82,2)","v":0}]
[59,"SUMINISTRO Y COLOCACIÓN DE TUBERÍA DE PVC SANITARIO RD-35 DE 6\" DE DIAMETRO (150 MM), INCLUYE: AFINE DE FONDO Y TALUDES DE CEPAS, COMPACTACION DE FONDO EN ZANJAS, SUMINISTRO Y COLOCACION DE CAMA DE ARENA, NIVELACION DE TUBERIA PARA DAR PENDIENTES DE PROYECTO,ACOSTILLADO,  SUMINISTRO Y COLOCACION DE CINTA DE PRECAUCION O PELIGRO,  MATERIALES, MANO DE OBRA, HERRAMIENTA Y EQUIPO.","ML",112.5,null,null,0]
[60,"SUMINISTRO Y COLOCACIÓN DE CODO DE PVC SANITARIO RD-35 DE 45° x  6\" DE DIAMETRO (45° x150 MM), INCLUYE: MATERIALES, MANO DE OBRA, HERRAMIENTA Y EQUIPO.","PZA",25,null,null,0]
[61,"SUMINISTRO Y COLOCACIÓN DE SILLETA DE PVC SANITARIO RD-35 DE 6\" DE DIAMETRO (150 MM), INCLUYE: MATERIALES, MANO DE OBRA, HERRAMIENTA Y EQUIPO.","PZA",25,null,null,0]
[62,"SUMINISTRO Y COLOCACIÓN DE ABRAZADERA SIN FIN DE ACERO INOXIDABLE DE  8\" DE DIAMETRO (200 MM), INCLUYE: MATERIALES, MANO DE OBRA, HERRAMIENTA Y EQUIPO.","PZA",50,null,null,0]
[63,"RELLENO COMPACTADO CON EQUIPO MECANICO MANUAL EN CAPAS DE 20 CM EN CEPA CON MATERIAL SELECCIONADO PRODUCTO DE LA EXCAVACION (CRIBADO POR LA MALLA DE 2 1/2\") LIBRE DE BOLEO MAYOR DE 3\" , COMPACTADO AL 90% PROCTOR. INCLUYE: CRIBADO DEL MATERIAL, ACARREOS DENTRO DE LA OBRA, INCORPORACION DE  HUMEDAD, MANO DE OBRA, HERRAMIENTA Y EQUIPO NECESARIO. ","M3",4.3312500000000007,null,null,0]
[64,"RELLENO COMPACTADO CON EQUIPO MECANICO MANUAL EN CAPAS DE 20 CM EN CEPA CON MATERIAL SELECCIONADO PRODUCTO DE BANCO LIBRE DE BOLEO MAYOR DE 3\" , COMPACTADO AL 90% PROCTOR. INCLUYE: CRIBADO DEL MATERIAL, ACARREOS DENTRO DE LA OBRA, INCORPORACION DE HUMEDAD, MANO DE OBRA, HERRAMIENTA Y EQUIPO NECESARIO. \n","M3",3.5437500000000002,null,null,0]
[65,"CARGA MECANICA Y ACARREO DE MATERIAL PRODUCTO DE LA EXCAVACION DE LAS DESCARGAS DOMICILIARIAS DE  ALCANTARILLADO SANITARIO PARA FORMACION DE TERRAPLENES EN VIALIDADES Y EN FORMACION DE PLATAFORMAS, INCLUYE: MANO DE OBRA, EQUIPO Y HERRAMIENTA.","M3",3.5437500000000002,null,null,0]
[66,"CONSTRUCCION DE REGISTRO  DE 0.60 x 0.40 M EN BANQUETA PARA RECIBIR DESCARGA DOMICILIARIA A BASE DE FIRME DE CONCRETO DE 5 CM MUROS DE BLOCK 12 X 20 X 40 CM REPELLADO INTERIOR DE MORTERO CEMENTO-ARENA 1:3  Y TAPA DE CONCRETO. INCLUYE: MARCO Y TAPA","PZA",25,null,null,0]
[null,null,null,null,null,"SUB TOTAL DESCARGAS DOMICILIARIAS",{"$f":"SUM(G82:G90)","v":0}]
["VIII.- INSTALACION ELECTRICA DISTRIBUCION SUBTERRANEA (MT)"]
["VIII.I","DESMANTELAMIENTO PARA RED DE DISTRIBUCION AEREA EN MEDIA Y BAJA TENSION PROPIEDAD DE CFE"]
[67,"RETIRO DE ESTRUCTURA PRIMARIA, SECUNDARIA , EQUIPO Y ACCESORIOS EN POSTE DE MADERA O CONCRETO EXISTENTE PROPIEDAD CFE; INCLUYE: DESMONTE DE ESTRUCTURAS PRIMARIAS, DESMONTE DE ESTRUCTURAS SECUNDARIAS, DESMONTE DE EQUIPO, DESMONTE DE ACCESORIOS, RETIRO DE POSTE, MANEOBRAS DE CARGA Y DESCARGA, TRASLADO DE MATERIALES RETIRADO A ALMACEN PROPORCIONADO POR CFE, SEÑALIZACION DE SEGURIDAD EN BANQUETA Y VIALIDAD PARA ELABORACION DE LOS TRABAJOS, LIMPIEZA DEL LUGAR DE TRABAJO, EQUIPO DE SEGURIDAD PERSONAL, HERRAMIENTA, EQUIPO, TRAMITES ANTE CFE Y TODO LO NECESARIO PARA SU CORRECTA EJECUCION. ","PZA",7,null,null,{"$f":"+ROUND(D94*E94,2)","v":0}]
[68,"RETIRO DE LINEA PRIMARIA EN MEDIA TENSION CON SISTEMA 3F-4H O 3F-3H CON CONDUCTOR CALIBRE 477 A 4 EN CU, ACSR O AAC; INCLUYE: DESCONEXION DE CONDUCTOR EN ESTRUCTURAS DE REMATES Y EXTREMOS, RETIRO DE AMARRES EN AISLADORES, DESMONTE Y EMBOBINADO DE CONDUCTOR EN CARRETES DE MADERA, MANEOBRAS DE CARGA Y DESCARGA, TRASLADO DE MATERIALES RETIRADO A ALMACEN PROPORCIONADO POR CFE, SEÑALIZACION DE SEGURIDAD EN BANQUETA Y VIALIDAD PARA ELABORACION DE LOS TRABAJOS, LIMPIEZA DEL LUGAR DE TRABAJO, EQUIPO DE SEGURIDAD PERSONAL, HERRAMIENTA, EQUIPO, TRAMITES ANTE CFE Y TODO LO NECESARIO PARA SU CORRECTA EJECUCION.","ML",400,null,null,0]
[69,"RETIRO DE LINEA SECUNDARIA EN BAJA TENSION CON SISTEMA 3F-4H O 3F-3H CON CONDUCTOR CALIBRE 3/0 A 2 EN CU, ACC O CONFIGURACION CUADRUPLEX; INCLUYE: DESCONEXION DE CONDUCTOR EN ESTRUCTURAS DE REMATE Y EXTREMOS, RETIRO DE AMARRES EN AISLADORES, DESMONTE Y EMBOBINADO DE CONDUCTOR EN CARRETES DE MADERA, MANEOBRAS DE CARGA Y DESCARGA, TRASLADO DE MATERIALES RETIRADO A ALMACEN PROPORCIONADO POR CFE, SEÑALIZACION DE SEGURIDAD EN BANQUETA Y VIALIDAD PARA ELABORACION DE LOS TRABAJOS, LIMPIEZA DEL LUGAR DE TRABAJO, EQUIPO DE SEGURIDAD PERSONAL, HERRAMIENTA, EQUIPO, TRAMITES ANTE CFE Y TODO LO NECESARIO PARA SU CORRECTA EJECUCION.","ML",320,null,null,0]
[70,"RETIRO DE ACOMETIDA AEREA EN MEDIA TENSION CON SISTEMA 3F-4H, 2F-3H O 1F-2H CON CONDUCTOR CALIBRE 3/0 A 1/0 EN CU, ACSR O AAC; INCLUYE: DESCONEXION DE CONDUCTOR EN EXTREMOS, RETIRO DE AMARRES EN AISLADORES, DESMONTE Y ENROLLADO DE CONDUCTOR POR ACOMETIDA, MANEOBRAS DE CARGA Y DESCARGA EN CAMION DE TRASLADO, TRASLADO DE MATERIALES RETIRADO A ALMACEN PROPORCIONADO POR CFE, SEÑALIZACION DE SEGURIDAD EN BANQUETA Y VIALIDAD PARA ELABORACION DE LOS TRABAJOS, LIMPIEZA DEL LUGAR DE TRABAJO, EQUIPO DE SEGURIDAD PERSONAL, HERRAMIENTA, EQUIPO, TRAMITES ANTE CFE Y TODO LO NECESARIO PARA SU CORRECTA EJECUCION.","PZA",5,null,null,0]
[71,"RETIRO DE ACOMETIDA AEREA EN BAJA TENSION CON SISTEMA 3F-4H, 2F-3H O 1F-2H CON CONDUCTOR CALIBRE 3/0 A 6 EN CONFIGURACION TRIPLEX O CUADRUPLEX; INCLUYE: DESCONEXION DE CONDUCTOR EN EXTREMOS, RETIRO DE AMARRES EN AISLADORES, DESMONTE Y ENROLLADO DE CONDUCTOR POR ACOMETIDA, MANEOBRAS DE CARGA Y DESCARGA EN CAMION DE TRASLADO, TRASLADO DE MATERIALES RETIRADO A ALMACEN PROPORCIONADO POR CFE, SEÑALIZACION DE SEGURIDAD EN BANQUETA Y VIALIDAD PARA ELABORACION DE LOS TRABAJOS, LIMPIEZA DEL LUGAR DE TRABAJO, EQUIPO DE SEGURIDAD PERSONAL, HERRAMIENTA, EQUIPO, TRAMITES ANTE CFE Y TODO LO NECESARIO PARA SU CORRECTA EJECUCION.","PZA",8,null,null,0]
[72,"RETIRO DE SISTEMA DE MEDICION CON ALIMENTACION AEREA EN BAJA TENSION CON SISTEMA 3F-4H, 2F-3H O 1F-2H; INCLUYE: DESCONEXION DE SISTEMA DE MEDICION DE DOMICILIO, DESMONTE Y RETIRO DE BASE DE MEDICION, MANEOBRAS DE CARGA Y DESCARGA, TRASLADO DE MATERIALES RETIRADO A ALMACEN PROPORCIONADO POR CFE, SEÑALIZACION DE SEGURIDAD EN BANQUETA Y VIALIDAD PARA ELABORACION DE LOS TRABAJOS, LIMPIEZA DEL LUGAR DE TRABAJO, EQUIPO DE SEGURIDAD PERSONAL, HERRAMIENTA, EQUIPO, TRAMITES ANTE CFE Y TODO LO NECESARIO PARA SU CORRECTA EJECUCION.","PZA",8,null,null,0]
[73,"LIBRANZAS NECESARIAS ANTE CFE PARA RETIRO DE RED AEREA EN MEDIA Y BAJA TENSION EXISTENTE PROPIEDAD DE CFE; INCLUYE: PAGOS ANTE CFE POR OBRA ESPECIFICA NECESARIAS EN LIBRANZAS PARA RETIRO DE LA RED AEREA EN MEDIA Y BAJA TENSION EXISTENTE PROPIEDAD DE CFE, TRAMITES Y COORDINACION DE LOS TRABAJOS ANTE CFE,  AVISO A USUARIOS AFECTADOS CON 2 DIAS DE ANTICIPACION POR CORTE DE ENERGIA Y TODO LO NECESARIO PARA SU CORRECTA EJECUCION.","LOTE",1,null,null,0]
[null,null,null,null,null,"SUBTOTAL DESMANTELAMIENTO",{"$f":"SUM(G94:G100)","v":0}]
["VIII.II","TRANSICION AEREA SUBTERRANEA TRIPOLAR, "]
[74,"TRANSICION AEREA SUBTERRANEA TRIPOLAR, SENCILLA INCLUYE CUCHILLAS , APARTARRAYOS SINTETICOS DE 12 KV TIPO RISER-POLE MARCA OHIO BRASS, TERMINALES TIPO EXTERIOR TIPO QT-III MARCA 3M, PUENTES, CONEXIÓN Y SISTEMA DE TIERRAS, MANO DE OBRA, HERRAMIENTA Y EQUIPOS, DESPERDICIOS, LIMPIEZA Y TODO LO NECESARIO PARA SU CORRECTA EJECUCIÓN.","JUEGO",1,null,null,{"$f":"+ROUND(D103*E103,2)","v":0}]
[null,null,null,null,null,"SUBTOTAL DE TRANSICION AERO-SUBTERRANEA TRIPOLAR",{"$f":"SUM(G103)","v":0}]
["VIII.III","OBRA CIVIL PARA RED DE DISTRIBUCION SUBTERRANEA EN MEDIA TENSION"]
[75,"SUMINISTRO E INSTALACION DE REGISTRO DE MEDIA TENSION EN BANQUETA TIPO 4 CON TAPA CUADRADA GALVANIZADA NORMA CFE RMTB4TC; INCLUYE: EXCAVACION POR MEDIOS MANUALES Y MECANICOS, NIVELACION E INSTALACION DE REGISTRO, RELLENO CON MATERIAL PRODUCTO DE LA EXCAVACION COMPACTADO AL 95%, RETIRO DE MATERIAL SOBRANTE DE EXCAVACION, ETIQUETADO DE REGISTRO EN INTERIOR Y EXTERIOR,REMATADO DE DUCTOS EN REGISTROS A BASE DE MORTERO DOSIFICACION 1:3, PULIDO SOBRE LA CARA INTERIOR DEL REGISTRO POR AMBOS LADOS DEL REGISTRO, INSTALACION DE CORREDERAS, MENSULAS Y TACONES, LIMPIEZA DEL LUGAR DE TRABAJO, SUMINISTRO DE REGISTRO, SUMINISTRO DE CORREDERAS, MENSULAS Y TACONES DE NEUPRENO, SUMINISTRO DE MATERIALES MENORES DE FIJACION PARA CORREDERAS Y MENSULAS (TAQUETES, TUERCAS, GUASAS, CINTILLOS, ETC), HERRAMIENTA, EQUIPO Y LO NECESARIO PARA SU CORRECTA INSTALACION.","PZA",2,null,null,{"$f":"+ROUND(D106*E106,2)","v":0}]
[76,"SUMINISTRO E INSTALACION DE BASE PARA TRANSFORMADOR TRIFASICO DE PEDESTAL DE 75 KVA  EN BANQUETA ; INCLUYE: EXCAVACION POR MEDIOS MANUALES Y MECANICOS, NIVELACION E INSTALACION DE REGISTRO, RELLENO CON MATERIAL PRODUCTO DE LA EXCAVACION COMPACTADO AL 95%, RETIRO DE MATERIAL SOBRANTE DE EXCAVACION,REMATADO DE DUCTOS EN REGISTROS A BASE DE MORTERO DOSIFICACION 1:3, PULIDO SOBRE LA CARA INTERIOR DEL REGISTRO POR AMBOS LADOS DEL REGISTRO,  SUMINISTRO DE CORREDERAS, MENSULAS Y TACONES DE NEUPRENO, SUMINISTRO DE MATERIALES MENORES DE FIJACION PARA CORREDERAS Y MENSULAS (TAQUETES, TUERCAS, GUASAS, CINTILLOS, ETC), HERRAMIENTA, EQUIPO Y LO NECESARIO PARA SU CORRECTA INSTALACION. ","PZA",1,null,null,{"$f":"+ROUND(D107*E107,2)","v":0}]
[77,"SUMINISTRO E INSTALACION DE REGISTRO DE MEDIA TENSION EN BANQUETA TIPO 3 CON ARO Y TAPA 84B POLIMERICO CFE RMTB3; INCLUYE: EXCAVACION POR MEDIOS MANUALES Y MECANICOS, NIVELACION E INSTALACION DE REGISTRO, RELLENO CON MATERIAL PRODUCTO DE LA EXCAVACION COMPACTADO AL 95%, RETIRO DE MATERIAL SOBRANTE DE EXCAVACION, ETIQUETADO DE REGISTRO EN INTERIOR Y EXTERIOR, REMATADO DE DUCTOS EN REGISTROS A BASE DE MORTERO DOSIFICACION 1:3, PULIDO SOBRE LA CARA INTERIOR DEL REGISTRO POR AMBOS LADOS DEL REGISTRO, INSTALACION DE CORREDERAS, MENSULAS Y TACONES, LIMPIEZA DEL LUGAR DE TRABAJO, SUMINISTRO DE REGISTRO, SUMINISTRO DE CORREDERAS, MENSULAS Y TACONES DE NEUPRENO, SUMINISTRO DE MATERIALES MENORES DE FIJACION PARA CORREDERAS Y MENSULAS (TAQUETES, TUERCAS, GUASAS, CINTILLOS, ETC), HERRAMIENTA, EQUIPO Y LO NECESARIO PARA SU CORRECTA INSTALACION.","PZA",4,null,null,{"$f":"+ROUND(D108*E108,2)","v":0}]
[78,"SUMINISTRO E INSTALACION DE BANCO DE DUCTO PRIMARIO DE 3 VIAS POR BANQUETA O ARROYO CON PADC DE 3\" NORMA CFE P3B-PADC-3\" O P3A-PADC-3\"; INCLUYE: EXCAVACION POR MEDIOS MANUALES Y MECANICOS, NIVELACION Y AFINE DE EXCAVACION CON MEDIOS MANUALES, TENDIDO E INSTALACION DE DUCTOS AL INTERIOR DE SANJA, INSTALACION DE CINTA DE PELIGRO, RELLENO CON MATERIAL PRODUCTO DE LA EXCAVACION COMPACTADO AL 95%, RETIRO DE MATERIAL SOBRANTE DE EXCAVACION, LIMPIEZA DEL LUGAR DE TRABAJO, SUMINISTRO DE PADC Y CINTA DE PELIGRO, HERRAMIENTA, EQUIPO Y LO NECESARIO PARA SU CORRECTA INSTALACION.","ML",60,null,null,{"$f":"+ROUND(D109*E109,2)","v":0}]
[79,"SUMINISTRO E INSTALACION DE BANCO DE DUCTO PRIMARIO DE 3 VIAS POR BANQUETA O ARROYO CON PADC DE 2\" NORMA CFE P3B-PADC-2\" P3A-PADC-2\"; INCLUYE: EXCAVACION POR MEDIOS MANUALES Y MECANICOS, NIVELACION Y AFINE DE EXCAVACION CON MEDIOS MANUALES, TENDIDO E INSTALACION DE DUCTOS AL INTERIOR DE SANJA, INSTALACION DE CINTA DE PELIGRO, RELLENO CON MATERIAL PRODUCTO DE LA EXCAVACION COMPACTADO AL 95%, RETIRO DE MATERIAL SOBRANTE DE EXCAVACION, LIMPIEZA DEL LUGAR DE TRABAJO, SUMINISTRO DE PADC Y CINTA DE PELIGRO, HERRAMIENTA, EQUIPO Y LO NECESARIO PARA SU CORRECTA INSTALACION.","ML",40,null,null,{"$f":"+ROUND(D110*E110,2)","v":0}]
[null,null,null,null,null,"SUBTOTAL CIVIL DISTRIBUCION SUBTERRANEA (MT)",{"$f":"SUM(G106:G110)","v":0}]
["VIII.IV","OBRA ELECTRICA PARA RED DE DISTRIBUCION SUBTERRANEA EN MEDIA TENSION"]
[80,"SUMINISTRO E INSTALACION DE SISTEMA DE TIERRAS PARA BASE DE TRANSFORMADOR DE MEDIA TENSION PARA COLOCAR TRANFORMADOR PEDESTAL Y CONDUCTORES DE CONEXION; INCLUYE: SUMINISTRO DE ELECTRODOS DE TIERRA, CARGAS AUTOFUNDENTES, CABLE DE CU DESNUDO SEMIDURO Y ZAPATAS DE CONEXION, EXCAVACION POR MEDIOS MANUALES,  NIVELACION Y AFINE DE EXCAVACION CON MEDIOS MANUALES,  INTRODUCCION DE ELECTRODOS EN TIERRA, TENDIDO E INSTALACION DE CABLE AL INTERIOR DE SANJA, CONEXION SOLDABLE ELECTRODO-CABLE, INSTALACION DE CINTA DE PELIGRO, RELLENO CON MATERIAL PRODUCTO DE LA EXCAVACION COMPACTADO AL 95%, RETIRO DE MATERIAL SOBRANTE DE EXCAVACION, LIMPIEZA DEL LUGAR DE TRABAJO, EQUIPO DE SEGURIDAD PERSONAL, HERRAMIENTA, EQUIPO Y TODO LO NECESARIO PARA SU CORRECTA EJECUCION","PZA",2,null,null,{"$f":"+ROUND(D113*E113,2)","v":0}]
[81,"SUMINISTRO E INSTALACION DE SISTEMA DE TIERRAS EN REGISTRO O POSO DE VISITA DE MEDIA TENSION PARA ALOJAR CONDUCTORES DE PASO; INCLUYE: SUMINISTRO DE ELECTRODOS DE TIERRA, CARGAS AUTOFUNDENTES, CABLE DE CU DESNUDO SEMIDURO Y ZAPATAS DE CONEXION, EXCAVACION POR MEDIOS MANUALES,  NIVELACION Y AFINE DE EXCAVACION CON MEDIOS MANUALES,  INTRODUCCION DE ELECTRODO EN TIERRA, TENDIDO E INSTALACION DE CABLE AL INTERIOR DE SANJA, CONEXION SOLDABLE ELECTRODO-CABLE, INSTALACION DE CINTA DE PELIGRO, RELLENO CON MATERIAL PRODUCTO DE LA EXCAVACION COMPACTADO AL 95%, RETIRO DE MATERIAL SOBRANTE DE EXCAVACION, LIMPIEZA DEL LUGAR DE TRABAJO, EQUIPO DE SEGURIDAD PERSONAL, HERRAMIENTA, EQUIPO Y TODO LO NECESARIO PARA SU CORRECTA EJECUCION","PZA",12,null,null,0]
[82,"SUMINISTRO E INSTALACION J6  (6-200) EN 13.2KV; INCLUYE: SUMINISTRO DE MATERILES DE CONEXION EN MEDIA TENSION, , SUMINISTRO DE MATERIALES DE CONEXION A SISTEMA DE TIERRAS, LIMPIEZA DEL LUGAR DE TRABAJO, EQUIPO DE SEGURIDAD PERSONAL, HERRAMIENTA, EQUIPO Y TODO LO NECESARIO PARA SU CORRECTA EJECUCION.","PZA",3,null,null,0]
[83,"SUMINISTRO E INSTALACION DE MATERIAL PARA CONECTAR TRANSFORMADOR PEDESTAL TRIFASICO EN MEDIA OPERACION RADIAL  EN 13.2KV 200A; INCLUYE: SUMINISTRO DE MATERILES DE CONEXION EN MEDIA TENSION(3 CODOS DE OPERACION CON CARGA DE 200 AMPERS,3 CODOS CODOS CON APARTARAYOS DE 200 AMPERS, 3 BOQUILLAS ESTACIONARIAS, 6 BUSHING INSERTO, 3 ADAPTADORES DE TIERRA, 3 TAPONES AISLADOS,3 INDICADORES DE FALLA,20 M DE CABLE DE POTENCIA CALIBRE 1/0, 10 M DE CABLE CCS CALIBRE 19 NO. 9, SUMINISTRO DE MATERIALES DE CONEXION EN BAJA TENSION (10 M CUADRUPLEX  DE ALUMINIO CALIBRE (3-3/0+1-3/0), ZAPATAS Y TORNILLERIA) CONEXION DE TRANSFORMADOR EN MEDIA TENSION, CONEXION DE TRANSFORMADOR EN BAJA TENSION, CONEXION DE TRANSFORMADOR A TIERRA, LIMPIEZA DEL LUGAR DE TRABAJO, EQUIPO DE SEGURIDAD PERSONAL, HERRAMIENTA, EQUIPO Y TODO LO NECESARIO PARA SU CORRECTA EJECUCION","PZA",2,null,null,0]
[84,"SUMINISTRO E INSTALACION DE CABLE XLP 100% EN 15KV CAL. 3/0 AWG DE ALUMINIO; INCLUYE: TENDIDO E INSTALACION DE CONDUCTOR AL INTERIOR DEL DUCTO, ACOMODO Y FIJACION DE CONDUCTOR EN REGISTROS, ETIQUETADO DE CONDUCTOR EN REGISTROS Y EQUIPOS SEGUN NOMENCLATURAS DE  CFE, SUMINISTRO DE MATERIALES MENORES DE INSTALACION Y ETIQUETADO (ETIQUETAS, CINTILLOS, CINTA AISLANTE, LUBRICANTE, ETC), SUMINISTRO DE CONDUCTOR, EQUIPO DE SEGURIDAD PERSONAL, LIMPIEZA DEL LUGAR DE TRABAJO, HERRAMIENTA, EQUIPO Y LO NECESARIO PARA SU CORRECTA INSTALACION.","ML",1200,null,null,0,null,{"$f":"D117-#REF!","v":{"$error":"#REF!"}},null,{"$f":"350000/E117","v":{"$error":"#DIV/0!"}}]
[85,"SUMINISTRO E INSTALACION DE CABLE XLP 100% EN 15KV CAL. 1/0 AWG DE ALUMINIO; INCLUYE: TENDIDO E INSTALACION DE CONDUCTOR AL INTERIOR DEL DUCTO, ACOMODO Y FIJACION DE CONDUCTOR EN REGISTROS, ETIQUETADO DE CONDUCTOR EN REGISTROS Y EQUIPOS SEGUN NOMENCLATURAS DE  CFE, SUMINISTRO DE MATERIALES MENORES DE INSTALACION Y ETIQUETADO (ETIQUETAS, CINTILLOS, CINTA AISLANTE, LUBRICANTE, ETC), SUMINISTRO DE CONDUCTOR, EQUIPO DE SEGURIDAD PERSONAL, LIMPIEZA DEL LUGAR DE TRABAJO, HERRAMIENTA, EQUIPO Y LO NECESARIO PARA SU CORRECTA INSTALACION.","ML",400,null,null,0]
[86,"SUMINISTRO E INSTALACION DE CABLE DESNUDO  CAL. 2 AWG CONDUCTIVIDAD 30%  CALIBRE 7 N0. 9  ACS O CCS;; INCLUYE: TENDIDO E INSTALACION DE CONDUCTOR SUJETO AL INTERIOR DEL DUCTO, ACOMODO DE CONDUCTOR EN REGISTROS Y EQUIPOS, SUMINISTRO DE MATERIALES MENORES DE INSTALACION (CINTILLOS, CINTA AISLANTE, ZAPATAS PONCHABLES, TORNILLERIAS, ETC), SUMINISTRO DE CONDUCTOR, LIMPIEZA DEL LUGAR DE TRABAJO, EQUIPO DE SEGURIDAD PERSONAL, HERRAMIENTA, EQUIPO Y LO NECESARIO PARA SU CORRECTA INSTALACION.","ML",960,null,null,0]
[87,"SUMINISTRO E INSTALACION DE CAJA DERIVADORA DE 4 VIAS (4-200A) EN 15KV; INCLUYE: FIJACION Y NIVELADO DE CAJA DERIVADORA EN GABINETE O REGISTRO, SUMINISTRO DE MATERIALES MENORES DE INSTALACION Y CONEXION A TIERRA DE CAJA DERIVADORA (ZAPATAS, CONDUCTOR, TAQUETES Y TORNILLERIAS, ETC), SUMINISTRO DE CAJA DERIVADORA, LIMPIEZA DEL LUGAR DE TRABAJO, EQUIPO DE SEGURIDAD PERSONAL, HERRAMIENTA, EQUIPO Y LO NECESARIO PARA SU CORRECTA INSTALACION.","PZA",6,null,null,0]
[88,"SUMINISTRO E INSTALACION DE BOQUILLA ESTACIONARIA DE 200A EN 15KV; INCLUYE: FIJACION E INSTALACION DE BOQUILLA ESTACIONARIA EN CAJA DERIVADORA, CONEXION A TIERRA, SUMINISTRO DE MATERIALES MENORES DE INSTALACION Y CONEXION A TIERRA DE BOQUIILA ESTACIONARIA (CONECTORES, CABLE THW, ETC), SUMINISTRO DE BOQUILLA ESTACIONARIA, LIMPIEZA DEL LUGAR DE TRABAJO, EQUIPO DE SEGURIDAD PERSONAL, HERRAMIENTA, EQUIPO Y LO NECESARIO PARA SU CORRECTA INSTALACION.","PZA",15,null,null,0]
[89,"SUMINISTRO E INSTALACION DE TAPON ASILADOR DE 200A EN 15KV; INCLUYE: FIJACION E INSTALACION DE TAPON AISLADOR EN CAJA DERIVADORA, CONEXION A TIERRA, SUMINISTRO DE MATERIALES MENORES DE INSTALACION Y CONEXION A TIERRA DE TAPON AISLADOR (CONECTORES, CABLE THW, ETC), SUMINISTRO DE TAPON AISLADOR, LIMPIEZA DEL LUGAR DE TRABAJO, EQUIPO DE SEGURIDAD PERSONAL, HERRAMIENTA, EQUIPO Y LO NECESARIO PARA SU CORRECTA INSTALACION.","PZA",50,null,null,0]
[90,"ADAPTADOR DE PANTALLA DE TIERRAS  MARCA 3M CONTRACTIL EN FRÍO PARA 3/0 AWG  INCLUYE: MATERIALES, ACCESORIOS PARA ATERRIZAMIENTO, MANO DE OBRA, HERRAMIENTA LIMPIEZA Y TODO LO NECESARIO PARA SU CORRECTA INSTALACIÓN","PZA",18,null,null,{"$f":"+ROUND(D123*E123,2)","v":0}]
[91,"ADAPTADOR DE PANTALLA DE TIERRAS  MARCA 3M CONTRACTIL EN FRÍO PARA 1/0 AWG  INCLUYE: MATERIALES, ACCESORIOS PARA ATERRIZAMIENTO, MANO DE OBRA, HERRAMIENTA LIMPIEZA Y TODO LO NECESARIO PARA SU CORRECTA INSTALACIÓN","PZA",12,null,null,{"$f":"+ROUND(D124*E124,2)","v":0}]
[92,"SUMINISTRO E INSTALACION DE CODO PORTA FUSIBLE DE 200A EN 15KV CALIBRE 1/0 AWG; INCLUYE: ARMADO Y CONEXION DE CODO PORTAFUSIBLE EN CONDUCTOR, INSTALACION DE FUSIBE EN CODO, CONEXION A TIERRA DE CODO Y ADAPTADOR, SUMINISTRO DE MATERIALES MENORES DE INSTALACION Y CONEXION A TIERRA DE CODO PORTA FUSIBLE Y ADAPTADOR (CONECTORES, CABLE THW, ETC), SUMINISTRO DE CODO PORTA FUSIBLE, FUSIBLE Y ADAPTADOR DE TIERRA, LIMPIEZA DEL LUGAR DE TRABAJO, EQUIPO DE SGURIDAD PERSONAL, HERRAMIENTA, EQUIPO Y LO NECESARIO PARA SU CORRECTA INSTALACION. (EL FUSIBLE PUEDE VARIAR SEGUN CAPACIDAD DE SUBESTACION).","PZA",12,null,null,0]
[93,"SUMINISTRO E INSTALACION DE CODO OPERACION CON CARGA DE 200A EN 15KV CALIBRE 3/0 AWG; INCLUYE: ARMADO Y CONEXION DE CODO EN CONDUCTOR, INSTALACION DE ADAPTADOR A CODO, CONEXION A TIERRA DE CODO Y ADAPTADOR, SUMINISTRO DE MATERIALES MENORES DE INSTALACION Y CONEXION A TIERRA DE CODO Y ADAPTADOR (CONECTORES, CABLE THW, ETC), SUMINISTRO DE CODO OPERACION CON CARGA Y ADAPTADOR DE TIERRA, LIMPIEZA DEL LUGAR DE TRABAJO, EQUIPO DE SEGURIDAD PERSONAL, HERRAMIENTA, EQUIPO Y LO NECESARIO PARA SU CORRECTA INSTALACION.","PZA",21,null,null,0]
[94,"BUSHING INSERTO CLASE 15-200A .CATALOGO LBI215 MARCA COOPER INCLUYE: MATERIALES, ACCESORIOS PARA ATERRIZAMIENTO, MANO DE OBRA, HERRAMIENTA LIMPIEZA Y TODO LO NECESARIO PARA SU CORRECTA INSTALACIÓN","PZA",2,null,null,0]
[95,"SUMINISTRO E INSTALACION DE TERMINAL EXTERIOR CONTRACTIL EN FRIO QTIII DE 200A EN 15KV CALIBRE 3/0 AWG; INCLUYE: ARMADO Y CONEXION DE TERMINAL EN CONDUCTOR, CONEXION A TIERRA DE TERMNAL, SUMINISTRO DE MATERIALES MENORES DE INSTALACION Y CONEXION A TIERRA DE TERMINAL (CONECTORES, CABLE THW, ETC), SUMINISTRO DE TERMINAL QTIII, LIMPIEZA DEL LUGAR DE TRABAJO, EQUIPO DE SEGURIDAD PERSONAL, HERRAMIENTA, EQUIPO Y LO NECESARIO PARA SU CORRECTA INSTALACION.","PZA",9,null,null,0]
[96,"SUMINISTRO E INSTALACION DE INDICADOR DE FALLA DE 200A EN 15KV; INCLUYE: INSTALACION DE INDICADOR EN CONDUCTOR, SUMINISTRO DE MATERIALES MENORES DE INSTALACION (CONECTORES, CABLE THW, ETC), SUMINISTRO DE INDICADOR DE FALLA, LIMPIEZA DEL LUGAR DE TRABAJO, EQUIPO DE SEGURIDAD PERSONAL, HERRAMIENTA, EQUIPO Y LO NECESARIO PARA SU CORRECTA INSTALACION.","PZA",6,null,null,0]
[97,"SUMINISTRO E INSTALACION DE CANALIZACION, SOPORTERIA Y ACCESORIOS DE MEDIA TENSION PARA SUBESTACION PARTICULAR; INCLUYE: ARMADO Y MONTADO DE ESTRUCTURA DE SOPORTE DE CONDUCTORES EN SUBESTACION, ARMADO Y MONTADO DE DUCTOS EN MURO DE CONSTRUCCION, INSTALACION DE ACCESORIOS DE MEDIA TENSION EN SUBESTACION SEGUN NECESIDAD, SUMINISTRO DE MATERIALES MENORES DE INSTALACION (RIEL UNICANAL, ABRAZADERAS, TUBO GALV, CURVAS PVC, VARILLA ROSCADA, ETC), SUMINISTRO DE DUCTOS, SUMINISTRO DE ACCESORIOS DE MEDIA TENSION NECESARIOS, LIMPIEZA DEL LUGAR DE TRABAJO, EQUIPO DE SEGURIDAD PERSONAL, HERRAMIENTA, EQUIPO Y LO NECESARIO PARA SU CORRECTA INSTALACION.","PZA",2,null,null,0]
[null,null,null,null,null,"SUBTOTAL ELECTRICA DISTRIBUCION SUBTERRANEA (MT)",{"$f":"SUM(G113:G130)","v":0}]
["VIII.V","OBRA CIVIL PARA RED DE DISTRIBUCION SUBTERRANEA EN BAJA TENSION"]
[98,"SUMINISTRO E INSTALACION REGISTRO DE BAJA TENSION PARA BANQUETA TIPO 1 CON TAPA DE POLICONCRETO CFE RBTB1; INCLUYE: EXCAVACION POR MEDIOS MANUALES Y MECANICOS, NIVELACION E INSTALACION DE REGISTRO, RELLENO CON MATERIAL PRODUCTO DE LA EXCAVACION COMPACTADO AL 95%, RETIRO DE MATERIAL SOBRANTE DE EXCAVACION, COLOCACION DE TAPA Y MANIJAS, ETIQUETADO DE REGISTRO EN EXTERIOR,REMATADO DE DUCTOS EN REGISTROS A BASE DE MORTERO DOSIFICACION 1:3, PULIDO SOBRE LA CARA INTERIOR DEL REGISTRO POR AMBOS LADOS DEL REGISTRO ,  LIMPIEZA DEL LUGAR DE TRABAJO, SUMINISTRO DE REGISTRO, SUMINISTRO DE TAPA POLICONCRETO Y MANIJAS GALVANIZADAS, HERRAMIENTA, EQUIPO Y LO NECESARIO PARA SU CORRECTA INSTALACION.","PZA",12,null,null,{"$f":"+ROUND(D133*E133,2)","v":0}]
[99,"SUMINISTRO E INSTALACION  BANCO DE DUCTO SECUNDARIO DE 1 VIAS POR BANQUETA CON PVC DE 2\" NORMA CFE S1B-PVC-2\"; INCLUYE: EXCAVACION POR MEDIOS MANUALES Y MECANICOS, NIVELACION Y AFINE DE EXCAVACION CON MEDIOS MANUALES, TENDIDO E INSTALACION DE DUCTOS AL INTERIOR DE SANJA, INSTALACION DE CINTA DE PELIGRO, RELLENO CON MATERIAL PRODUCTO DE LA EXCAVACION COMPACTADO AL 95%, RETIRO DE MATERIAL SOBRANTE DE EXCAVACION, LIMPIEZA DEL LUGAR DE TRABAJO, SUMINISTRO DE PADC Y CINTA DE PELIGRO, HERRAMIENTA, EQUIPO Y LO NECESARIO PARA SU CORRECTA INSTALACION.","ML",80,null,null,{"$f":"+ROUND(D134*E134,2)","v":0}]
[null,null,null,null,null,"SUBTOTAL CIVIL DISTRIBUCION SUBTERRANEA (BT)",{"$f":"SUM(G133:G134)","v":0}]
["VIII.VI","OBRA ELECTRICA PARA RED DE DISTRIBUCION SUBTERRANEA EN BAJA TENSION"]
[100,"SUMINISTRO E INSTALACION DE SISTEMA DE MEDICION SUBTERRANEO SENCILLO 2F-3H O 1F-2H 100A EN 220V; INCLUYE: INSTALACION Y CONEXION DE SISTEMA DE MEDICION, INSTALACION Y CONEXION DE SISTEMA DE TIERRAS, TENDIDO E INSTALACION DE CANALIZACION FALTANTE DE PREPARACION A BASE DE MEDICION, SUMINISTRO DE MATERIALES MENORES DE INSTALACION Y CONEXION (TAQUETES, PIJAS, CONECTORES, CABLE, ELECTRODO DE TIERRA, TUBERIA, ETC), SUMINISTRO DE BASE DE MEDICION E INTERRUPTOR, LIMPIEZA DEL LUGAR DE TRABAJO, EQUIPO DE SEGURIDAD PERSONAL, HERRAMIENTA, EQUIPO Y LO NECESARIO PARA SU CORRECTA INSTALACION.","PZA",8,null,null,{"$f":"+ROUND(D137*E137,2)","v":0}]
[101,"SUMINISTRO E INSTALACION DE SISTEMA DE TIERRAS EN REGISTRO DE BAJA TENSION; INCLUYE: SUMINISTRO DE ELECTRODO DE TIERRA, CONECTOR, 3M DE CABLE DE CU DESNUDO SEMIDURO CAL. 10, INTRODUCCION DE ELECTRODO EN TIERRA, INSTALACION DE CABLE AL INTERIOR DE REGISTRO, CONEXION SOLDABLE ELECTRODO-CABLE, LIMPIEZA DEL LUGAR DE TRABAJO, EQUIPO DE SEGURIDAD PERSONAL, HERRAMIENTA, EQUIPO Y TODO LO NECESARIO PARA SU CORRECTA EJECUCION","PZA",12,null,null,0]
[{"$f":"A138+1","v":102},"SUMINISTRO E INSTALACION DE CONECTOR MULTIPLE 200A 600V DE 6 VIAS; INCLUYE: SUMINISTRO DE CONECTOR MULTIPLE, CONEXION MECANICA DE CONECTOR MULTIPLE A CONDUCTORES, CONEXION A TIERRA EN CONECTOR MULTIPLE DE NEUTRO, LIMPIEZA DEL LUGAR DE TRABAJO, EQUIPO DE SEGURIDAD PERSONAL, HERRAMIENTA, EQUIPO Y TODO LO NECESARIO PARA SU CORRECTA EJECUCION","PZA",16,null,null,0]
[103,"SUMINISTRO E INSTALACION DE CONECTOR MULTIPLE 200A 600V DE 4 VIAS; INCLUYE: SUMINISTRO DE CONECTOR MULTIPLE, CONEXION MECANICA DE CONECTOR MULTIPLE A CONDUCTORES, CONEXION A TIERRA EN CONECTOR MULTIPLE DE NEUTRO, LIMPIEZA DEL LUGAR DE TRABAJO, EQUIPO DE SEGURIDAD PERSONAL, HERRAMIENTA, EQUIPO Y TODO LO NECESARIO PARA SU CORRECTA EJECUCION","PZA",8,null,null,0]
[104,"SUMINISTRO E INSTALACION DE CABLE XLP 3+1 (3/0-1/0) EN ALUMINIO AAC PARA 600V 90°C; INCLUYE: TENDIDO E INSTALACION DE CONDUCTOR AL INTERIOR DEL DUCTO, ACOMODO Y FIJACION DE CONDUCTOR EN REGISTROS, ETIQUETADO DE CONDUCTOR EN REGISTROS Y EQUIPOS SEGUN NOMENCLATURAS DE  CFE, SUMINISTRO DE MATERIALES MENORES DE INSTALACION Y ETIQUETADO (ETIQUETAS, CINTILLOS, CINTA AISLANTE, LUBRICANTE, ETC), SUMINISTRO DE CONDUCTOR, EQUIPO DE SEGURIDAD PERSONAL, LIMPIEZA DEL LUGAR DE TRABAJO, HERRAMIENTA, EQUIPO Y LO NECESARIO PARA SU CORRECTA INSTALACION.","ML",740,null,null,0]
[105,"SUMINISTRO E INSTALACION DE CABLE XLP 2+1 (4-4) EN ALUMINIO AAC PARA 600V 90°C; INCLUYE: TENDIDO E INSTALACION DE CONDUCTOR AL INTERIOR DEL DUCTO, ACOMODO Y FIJACION DE CONDUCTOR EN REGISTROS, ETIQUETADO DE CONDUCTOR EN REGISTROS Y EQUIPOS SEGUN NOMENCLATURAS DE  CFE, SUMINISTRO DE MATERIALES MENORES DE INSTALACION Y ETIQUETADO (ETIQUETAS, CINTILLOS, CINTA AISLANTE, LUBRICANTE, ETC), SUMINISTRO DE CONDUCTOR, EQUIPO DE SEGURIDAD PERSONAL, LIMPIEZA DEL LUGAR DE TRABAJO, HERRAMIENTA, EQUIPO Y LO NECESARIO PARA SU CORRECTA INSTALACION.","ML",225,null,null,0]
[106,"SUMINISTRO E INSTALACION DE CANALIZACION Y SOPORTERIA PARA TRANSICION AEREA SUBTERRANEA DE BAJA TENSION 220V; INCLUYE: ARMADO Y MONTADO DE ESTRUCTURA DE SOPORTE DE CONDUCTORES, ARMADO Y MONTADO DE DUCTOS EN POSTE, INSTALACION DE BOTAS TERMOCONTRACTIL EN DUCTO-CONDUCTOR, SUMINISTRO DE MATERIALES MENORES DE INSTALACION (RIEL UNICANAL, ABRAZADERAS, CURVAS PVC, VARILLA ROSCADA, ETC), SUMINISTRO DE HERRAJES, SUMINISTRO DE DUCTOS, LIMPIEZA DEL LUGAR DE TRABAJO, EQUIPO DE SEGURIDAD PERSONAL, HERRAMIENTA, EQUIPO Y LO NECESARIO PARA SU CORRECTA INSTALACION.","PZA",3,null,null,0]
[null,null,null,null,null,"SUBTOTAL ELECTRICA DISTRIBUCION SUBTERRANEA (BT)",{"$f":"SUM(G137:G143)","v":0}]
["VIII.VII","PRUEBAS A CABLES DE POTENCIA"]
[107,"PRUEBAS DE AISLAMIENTO A CABLES, TIPO VLF.INCLUYE PRUEBAS DE AISLAMIENTO CON VLF, QUE CORRESPONDE A CADA CONDUCTOR, CON LA INTENSION QUE SE CUMPLA CON LOS VALORES NOMINALES. SE ENTREGARA INFORME CORREPONDIENTE DE LOS RESULTADOS DE LA PRUEBA","LOTE",24,null,null,{"$f":"+ROUND(D146*E146,2)","v":0}]
[null,null,null,null,null,"SUBTOTAL PRUEBAS DE POTENCIA",{"$f":"G146","v":0}]
[]
["VIII.VIII","OBRA ELECTRICA PARA RED DE DISTRIBUCION SUBTERRANEA EN MEDIA TENSION"]
[108,"SUMINISTRO E INSTALACION DE TRANSFORMADOR DE PEDESTALTRIFASICO DE 75 KVA NORMA K  EN ACERO INOXIDABLE EN 13200Y/7621-220Y/127 VOLTS, EN ANILLO OPERACION RADIAL EN 200A; INCLUYE: INSTALACION Y FIJACION DE TRANSFORMADOR EN BASE DE CONCRETO, LIMPIEZA DEL LUGAR DE TRABAJO, SUMINISTRO DE TRANSFORMADOR PEDESTAL, SUMINISTRO DE MATERIALES MENORES DE FIJACION (TAQUETES, TORNILLOS, TACONES, ETC), EQUIPO DE SEGURIDAD PERSONAL, HERRAMIENTA, EQUIPO Y LO NECESARIO PARA SU CORRECTA INSTALACION.","PZA",2,null,null,{"$f":"+ROUND(D150*E150,2)","v":0}]
[84,"SUMINISTRO E INSTALACION DE CABLE XLP 100% EN 15KV CAL. 3/0 AWG DE ALUMINIO; INCLUYE: TENDIDO E INSTALACION DE CONDUCTOR AL INTERIOR DEL DUCTO, ACOMODO Y FIJACION DE CONDUCTOR EN REGISTROS, ETIQUETADO DE CONDUCTOR EN REGISTROS Y EQUIPOS SEGUN NOMENCLATURAS DE  CFE, SUMINISTRO DE MATERIALES MENORES DE INSTALACION Y ETIQUETADO (ETIQUETAS, CINTILLOS, CINTA AISLANTE, LUBRICANTE, ETC), SUMINISTRO DE CONDUCTOR, EQUIPO DE SEGURIDAD PERSONAL, LIMPIEZA DEL LUGAR DE TRABAJO, HERRAMIENTA, EQUIPO Y LO NECESARIO PARA SU CORRECTA INSTALACION.","ML",{"$f":"1790-1200","v":590},null,null,0]
[null,null,null,null,null,"SUBTOTAL INSTALACION ELECTRICA DISTRIBUCION SUBTERRANEA (MT)",{"$f":"SUM(G150:G151)","v":0}]
[null,null,null,null,null,"SUBTOTAL DE RED ELECTROMECANICA",{"$f":"G101+G104+G111+G131+G135+G144+G147+G152","v":0}]
["IX.- RED TELEFONIA SUBTERRANEA"]
[109,"MOVIMIENTO DE RED, POSTERIA  DE INFRESTRUCTURA AREA A SUBTERRANEA, CALLE TOPETE, TRAMO MANGUITO A JUAREZ","LOTE",1,null,null,{"$f":"+ROUND(D155*E155,2)","v":0}]
[{"$f":"A155+1","v":110},"EXCAVASION POR MEDIOS MANUALES DE ZANJAS EN MATERIAL TIPO \"II\" DE 0.00 A 1.00 MTS. DE PROFUNDIDAD. INCLUYE: EQUIPO HERRAMIENTA, MANO DE OBRA Y MATERIALES","ML",180,null,null,0]
[{"$f":"A156+1","v":111},"SUMINISTRO Y COLOCACION DE CINTA DE PRECAUCION O PELIGRO EN TODA LA TUBERIA, INCLUYE: MATERIAL, HERRAMIENTA Y MANO DE OBRA","ML",180,null,null,0]
[112,"RELLENO DE CEPAS DE RED CON MATERIAL PRODUCTO DE LA EXCAVASION  AL 95% PROCTOR, EN CEPAS DE 20 CM. INCLUYE:  MATERIALES, MANO DE OBRA,  HERRAMIENTA Y EQUIPO","ML",180,null,null,0]
[113," COLOCACION DE MINIPOSTE. INCLUYE: MATERIALES , HERRAMIENTA Y MANO DE OBRA Y EQUIPO","PZA",2,null,null,0]
[114,"EXCAVASION PARA REGISTRO TELEFONICO. INCLUYE:  EQUIPO,  HERRAMIENTA, MANO DE OBRA","ML",6,null,null,0]
[115,"SUMINISTRO Y COLOCACION DE TUBERIA DE PVC GRIS DE 2\" CED. 40. INCLUYE:  MATERIALES, MANO DE OBRA EQUIPO Y HERRAMIENTA.","ML",450,null,null,0]
[116,"SUMINISTRO  Y COLOCACION DE REGISTRO  TIPO L2T. INCLUYE: OBRA CIVIL, MATERIALES, MANO DE OBRA, MANIOBRAS Y MAQUINARIA, EQUIPO Y HERRAMIENTA.","PZA",3,null,null,0]
[117,"SUMINISTRO  Y COLOCACION DE REGISTRO  TIPO L3T. INCLUYE: OBRA CIVIL, MATERIALES, MANO DE OBRA, MANIOBRAS Y MAQUINARIA, EQUIPO Y HERRAMIENTA.","PZA",2,null,null,0]
[118,"COLOCACION DE PEDESTAL GRANDE. INCLUYE:  MANO DE OBRA, MANIOBRAS Y MAQUINARIA, EQUIPO Y HERRAMIENTA.","PZA",2,null,null,0]
[119,"COLOCACION DE RADIALES  DE MANGUERA POLIDUCTO PVC GRIS DE 3/4\" PARA CABLES. INCLUYE : RAFIA, MANO DE OBRA, MANIOBRAS Y MAQUINARIA, EQUIPO Y HERRAMIENTA.","ML",50,null,null,0]
[120,"SUMINISTRO Y COLOCACION DE CONCRETO F*C=100KG/CM2 PARA ENCONFRADO DE TUBERIA. INCLUYE: MATERIALES  MANO DE OBRA, MANIOBRAS Y MAQUINARIA, EQUIPO Y HERRAMIENTA.","ML",150,null,null,0]
[null,null,null,null,null,"TOTAL DE RED TELEFONIA SUBTERRANEA",{"$f":"SUM(G155:G166)","v":0}]
["X.- RED TELEVISION SUBTERRANEA"]
[121,"EXCAVACION POR MEDIOS MANUALES DE ZANJAS EN MATERIAL TIPO \"II\" DE 0.00 A 1.00 MTS. DE PROFUNDIDAD. INCLUYE EQUIPO HERRAMIENTA, MANO DE OBRA Y MATERIALES","ML",225,null,null,{"$f":"+ROUND(D169*E169,2)","v":0}]
[122,"SUMINISTRO Y COLOCACION DE CINTA DE PRECAUCION O PELIGRO EN TODA LA TUBERIA, INCLUYE MATERIAL, HERRAMIENTA Y MANO DE OBRA","ML",225,null,null,{"$f":"+ROUND(D170*E170,2)","v":0}]
[123,"RELLENO DE CEPAS DE RED CON MATERIAL PRODUCTO DE LA EXCAVASION  AL 95% PROCTOR, EN CEPAS DE 20 CM. INCLUYE MATERIALES, MANO DE OBRA,  HERRAMIENTA Y EQUIPO","ML",225,null,null,{"$f":"+ROUND(D171*E171,2)","v":0}]
[124,"COLOCACION DE TUBERIA DE PVC GRIS DE 2\". INCLUYE MATERIALES, MANO DE OBRA EQUIPO Y HERRAMIENTA.","ML",45,null,null,{"$f":"+ROUND(D172*E172,2)","v":0}]
[null,null,null,null,null,"TOTAL DE RED DE TELEVISION SUBTERRANEA",{"$f":"SUM(G169:G172)","v":0}]
["XI.- INSTALACIONES ELECTRICAS TRAMO MANGUITO A CALLE JUAREZ (2DA ETAPA)"]
["XI.I","PRELIMINARES ELECTRICOS 2DA ETAPA"]
[125,"SUMINISTRO Y COLOCACION DE TAPA 84B Y FABRICACION DE LOSA TAPA, INCLUYE: DEMOLICION DE LOZA EXISTENTE DE REGISTRO DE MEDIA TENSION DE TAPA REDONDA, COLOCACION DE TAPA PREFABRICADA 84B, FABRICACION DE NUEVA LOSA  CON RESPECTO A NIVEL DE CALLE,MATERIALES, MANO DE OBRA, EQUIPO Y HERRAMIENTA.","LOTE",3,null,null,{"$f":"ROUND(D176*E176,2)","v":0}]
[null,null,null,null,null,"SUBTOTAL PRELIMINARES ELECTRICOS 2DA ETAPA",{"$f":"SUM(G176:G176)","v":0}]
["XI.II","ALUMBRADO PUBLICO"]
[126,"SUMINISTRO E INSTALACION DE TUBERÍA CONDUIT DE PVC PARED GRUESA, DE 2\" DE DIAMETRO. PARA PREPARACION DE INSTALACION ELECTRICA EN ALUMBRADO PUBLICO. INCLUYE: EXCAVACION, COLOCACION DE TUBERIA, MATERIAL DIVERSO DE INSTALACION, CONEXION AL REGISTRO ELECTRICO, ELEMENTOS DE PROTECCION EN LOS EXTREMOS PARA EVITAR LA INTRODUCCION DE CUALQUIER MATERIAL, MANO DE OBRA, HERRAMIENTA Y EQUIPO.","ML",310,null,null,{"$f":"ROUND(D179*E179,2)","v":0}]
[127,"SUMINISTRO Y COLOCACION DE BASE PREFABRICADA TRAPEZOIDAL DE CONCRETO DE 40x40 EN CORONA Y 80x80 EN BASE, CON ALTURA DE 120 Cm., F´c=200 Kg/Cm2 ARMADA CON VARILLA N° 3 Y 4 SEGÚN (VER DETALLE EN PLANOS), INCLUYE: MANIOBRAS Y MAQUINARIA PARA EXTRAER AGUA DEL CANAL EN CASO DE SER NECESARIO.","PZA",9,null,null,0]
[128,"SUMINISTRO Y COLOCACIÓN DE LUMINARIO DE LED DE 100  WATTS MODELO LUMA 2  MARCA FORLIGHTING PREMIUM, TERMINADA CON PINTURA ELECTROSTATICA, PARA MAYOR EFICIENCIA Y CONTROL DE LUZ , SE INCLUYE:  ELEMENTOS DE FIJACIÓN Y CONEXIÓN,  ANEXAR HOJA DE CERTIFICACIÓN NOM-064-SCFI., CONSIDERAR CARGO DIRECTO POR EL COSTO DE MANO DE OBRA Y MATERIALES REQUERIDOS, FLETE A OBRA, ACARREO, COPLE, FIJACIÓN, LIMPIEZA Y RETIRO DE SOBRANTES FUERA DE OBRA, EQUIPO DE SEGURIDAD, INSTALACIONES ESPECÍFICAS, DEPRECIACIÓN Y DEMÁS CARGOS DERIVADOS DEL USO DE EQUIPO Y HERRAMIENTA, EN CUALQUIER NIVEL.","PZA",9,null,null,0]
[129,"SUMINISTRO Y COLOCACIÓN DE POSTE DE Fe. (CAL. 11) OCTAGONAL CÓNICO GALVANIZADO DE 9 METROS DE ALTURA, SE INCLUYE CABLE INTERIOR THHW CALIBRE No 10 AWG 90°C (TRES HILOS) POR LAMPARA,BRAZO DE 1.80 METROS DE LARGO, INCLUYE CARGO DIRECTO POR EL COSTO DE MANO DE OBRA Y MATERIALES REQUERIDOS, FLETE A OBRA, ACARREO, COPLE, TRAZO,   COLOCACIÓN, GUÍA DE ALAMBRE GALVANIZADO CALIBRE 14, FIJACIÓN, LIMPIEZA Y RETIRO DE SOBRANTES FUERA DE OBRA, EQUIPO DE SEGURIDAD, INSTALACIONES ESPECÍFICAS, DEPRECIACIÓN Y DEMÁS CARGOS DERIVADOS DEL USO DE EQUIPO Y HERRAMIENTA, EN CUALQUIER NIVEL.\n","PZA",9,null,null,0]
[130,"SUMINISTRO Y COLOCACIÓN DE REGISTRO ELÉCTRICO  PREFABRICADO DE 40x40x60 Cm, A BASE DE CONCRETO F'c = 150 Kg/Cm2. T.M.A. 3/4\". REV. DE 8 A 10 CMS. CON UN ESPESOR DE 10 CMS. PISO DE GRAVA, APLANADO INTERIOR PULIDO FINO, MARCO Y CONTRAMARCO METALICOS GALVANIZADOS ÁNGULO 1 1/2\"x 1/4\" Y TAPA DE CONCRETO ARMADO CON VARILLA CORRUGADA ALTA RESISTENCIA DEL No.2 @ 10 CMS. AMBOS SENTIDOS SOLDADAS, F'c = 250 Kg/Cm2. T.M.A. 3/4\". REVENIMIENTO DE 8 A 10 CMS. INCLUYE: EXCAVACION EN TERRENO INVESTIGADO EN SITIO, RELLENO COMPACTADO AL 90% MINIMO, CON MATERIAL SELECCIONADO PRODUCTO DE LA EXCAVACIÓN LIBRE DE BOLEO MAYOR DE 3\", NIVELADO A N.P.T., MANIOBRAS, MATERIALES, MANO DE OBRA, HERRAMIENTA Y EQUIPO NECESARIO","PZA",9,null,null,0]
[131,"SUMINISTRO Y COLOCACIÓN DE CABLE DE ALUMINIO TRIPLEX XLP No. (2-2+1-2 ) (SUBTERRANEO) EN CANALIZACIÓN ELÉCTRICA, INCLUYE CARGO DIRECTO POR EL COSTO DE MANO DE OBRA Y MATERIALES REQUERIDOS, FLETE A OBRA, ACARREO, CORTE, COLOCACIÓN, CINTA AISLANTE, CINTA VULCANIZABLE, CONECTORES PONCHABLES BIMETALICOS (PUROS) EN CALIBRE ADECUADO, FIJACIÓN, LIMPIEZA Y RETIRO DE SOBRANTES FUERA DE OBRA, EQUIPO DE SEGURIDAD, INSTALACIONES ESPECÍFICAS, DEPRECIACIÓN Y DEMÁS CARGOS DERIVADOS DEL USO DE EQUIPO Y HERRAMIENTA, EN CUALQUIER NIVEL.","ML",310,null,null,0]
[132,"SUMINISTRO Y COLOCACIÓN DE CONTACTOR DE COMBINACION DE ALUMBRADO MONOFÁSICO, 220 VOLTS., 30 AMPERES, BOBINA DE CONTROL 127 VOLTS., MARCA SIEMENS INCLUYE: GABINETE MULTIPROPÓSITO PARA SOBREPONER NEMA 3R, FOTOCELDA CON CABLEADO DE CONTROL Y CONEXIÓN A CIRCUITO DE ALUMBRADO, INCLUYE CARGO DIRECTO POR EL COSTO DE MANO DE OBRA Y MATERIALES REQUERIDOS, FLETE A OBRA, ACARREOS, COPLE, TRAZO, CORTE, COLOCACIÓN, GUÍA DE ALAMBRE GALVANIZADO CALIBRE 14, FIJACIÓN, LIMPIEZA Y RETIRO DE SOBRANTES FUERA DE OBRA, EQUIPO DE SEGURIDAD, INSTALACIONES ESPECÍFICAS, DEPRECIACIÓN Y DEMÁS CARGOS DERIVADOS DEL USO DE EQUIPO Y HERRAMIENTA, EN CUALQUIER NIVEL.","PZA",1,null,null,0]
[133,"SUMINISTRO Y COLOCACIÓN DE CENTRO DE CARGA SQUARE D NEMA 3R MONOFÁSICO 120/240 VOLTS., 8 ESPACIOS Y BARRAS DE 100 AMPERES, CAJA 3 R Y ZAPATAS PRINCIPALES, CATALOGO QO816L100S, INCLUYE CARGO DIRECTO POR EL COSTO DE MANO DE OBRA Y MATERIALES REQUERIDOS, FLETE A OBRA, ACARREO, COPLE, TRAZO, CORTE, COLOCACIÓN, GUÍA DE ALAMBRE GALVANIZADO CALIBRE 14, FIJACIÓN, LIMPIEZA Y RETIRO DE SOBRANTES FUERA DE OBRA, EQUIPO DE SEGURIDAD, INSTALACIONES ESPECÍFICAS, DEPRECIACIÓN Y DEMÁS CARGOS DERIVADOS DEL USO DE EQUIPO Y HERRAMIENTA, EN CUALQUIER NIVEL.","PZA",1,null,null,0]
[134,"SUMINISTRO Y COLOCACIÓN DE INTERRUPTOR TERMO MAGNÉTICO QO DE DOS POLOS DE 15 A 50 AMPERES, MARCA SQUARE D.","PZA",1,null,null,0]
[135,"SUMINISTRO DE MATERIALES Y CONSTRUCCIÓN DE MURETE MT - 3 TIPO C, UN FRENTE, DE UN METRO INTERIOR POR 2 METROS DE ALTO Y 40 CM. DE PROFUNDIDAD, A BASE DE BLOQUE DE CEMENTO DE 15X20X40 CM. ASENTADO CON MORTERO CEMENTO - ARENA 1:3, APLANADO PULIDO FINO, PISO DE GRAVA, PINTADO A DOS MANOS EN COLOR INDICADO POR SUPERVISIÓN, POR UNIDAD DE OBRA TERMINADA, MANIOBRAS Y MAQUINARIA PARA EXTRAER AGUA DEL CANAL EN CASO DE SER NECESARIO.","PZA",1,null,null,0]
[136,"SUMINISTRO Y COLOCACIÓN DE BASE DE MEDICIÓN MS - 03 MONOFÁSICA 220/127 VOLTS., COMPLETA, TIPO SUBTERRANEA CABLEADA CON TRES CABLES CALIBRE 6 AWG PARA FASES Y NEUTRO, INTERRUPTOR PRINCIPAL 2X30,  VARILLA DE TIERRA, PUERTA DE LAMINA DE O.8 X O.6 MT DE DOS HOJAS PARA CANDADO, CAL 16 CON MARCO DE ANGULO DE 1/ 1/2\" X 1/8\" CON RECUBRIMIENTO PRIMARIO Y ACABADO, MANO DE OBRA, HERRAMIENTA, EQUIPO Y TODO LO NECESARIO PARA SU CORRECTA CONSTRUCCIÓN. MATERIAL DIVERSO DE INSTALACIÓN Y FIJACIÓN.","PZA",1,null,null,0]
[137,"SUMINISTRO Y COLOCACIÓN DE PROTECCIÓN METÁLICA EN   MURETE DE MEDICIÓN A BASE DE ÁNGULO Y LÁMINA ESTRIADA. SECCIÓN SEGÚN DIMENSIONES DE MURETE, INCLUYE PINTURA ANTICORROSIVA Y DE ESMALTE EN COLOR INDICADO POR SUPERVISOR, BISAGRAS, CANDADO, MATERIALES, MANO DE OBRA, HERRAMIENTA Y EQUIPO.","PZA",1,null,null,0]
[138,"PAGO DE UNIDAD DE VERIFICACIÓN CERTIFICADO POR LA SECRETARIA DE ENERGÍA, AVALANDO LA INSTALACIÓN ELÉCTRICA DEL SISTEMA DE ALUMBRADO.","LOTE",1,null,null,0]
[139,"TRAMITES  ANTE LA COMISIÓN FEDERAL DE ELECTRICIDAD PAGO DEL DEPOSITO EN GARANTIA DEL CONTRATO A NOMBRE DEL H. AYUNTAMIENTO.","TRAMITE",1,null,null,0]
[null,null,null,null,null,"SUB TOTAL ALUMBRADO PUBLICO",{"$f":"SUM(G179:G192)","v":0}]
[null,null,null,null,null,"TOTAL  INSTALACIONES ELECTRICAS TRAMO MANGUITO A CALLE JUAREZ (2DA ETAPA)",{"$f":"G193+G177","v":0}]
["XII.- TERRACERIAS"]
[140,"TRAZO Y NIVELACION DE TERRACERIAS, AL AMPARO DE ESTE CONCEPTO EL CONTRATISTA DE ACUERDO A LOS PLANOS DE PROYECTO QUE LE SEAN SUMINISTRADOS, HARA EL TRAZO Y NIVELACION CON EQUIPO DE TOPOGRAFIA DE LOS EJES, LIMITES Y DETALLES CONSTRUCTIVOS DE LOS TRABAJOS. DEBERA COLOCAR REFERENCIAS FIJAS, FUERA DE LAS AREAS DE LOS TRABAJOS PARA ASEGURAR LOS ALINEAMIENTOS Y NIVELES. INCLUYE: LOS MATERIALES, MANO DE OBRA, HERRAMIENTA Y EQUIPO NECESARIO.","M2",{"$f":"260*8.1","v":2106},null,null,{"$f":"ROUND(D196*E196,2)","v":0}]
[141,"EXCAVACION Y/O CORTE POR MEDIOS MECANICOS EN TERRENO CON CUALQUIER CLASIFICACION PARA LA ELABORACION DE CAJA, CON ESPESOR VARIABLE PARA DAR EL NIVEL DE SUBRASANTE. INCLUYE: ESCARIFICADO,  ACAMELLONADO DEL MATERIAL PARA SER RETIRADO, Y EL EQUIPO NECESARIO.","M3",1369,null,null,0]
[142,"CARGA Y ACARREO POR MEDIOS MECANICOS DEL MATERIAL PRODUCTO DEL CORTE NO UTILIZABLE PARA EL PRIMER KILOMETRO DE DISTANCIA. INCLUYE EL EQUIPO NECESARIO.","M3",{"$f":"D197*1.3","v":1779.7},null,null,0]
[143,"ACARREO  EN CAMION DEL MATERIAL PRODUCTO DEL CORTE PARA KILOMETROS SUBSECUENTES. (6 KM). INCLUYE: EL EQUIPO NECESARIO.","M3-KM",{"$f":"D198*6","v":10678.2},null,null,0]
[144,"TRATAMIENTO Y /O MEJORAMIENTO DE TERRACERIAS  EN CAPA SUBRASANTE PARA DAR NIVELES DE PROYECTO DEFINITIVIOS. INCLUYE: ESCARIFICADO EN UNA CAPA DE 30 CMS, PAPEO DEL MATERIAL MAYOR A 3\" MANUAL, CONFORMACION DE LA CAPA SUBRASANTE, INCORPORACION DE HUMEDAD OPTIMA, TENDIDO, AFINE Y COMPACTACION AL 95% DE SU  PVSM DE LA PRUEBA PROCTOR MODIFICADA  (ASSHTO), EN UN ESPESOR DE 30 CM, EN TERRENO CON CUALQUIER CLASIFICACION. INCLUYE: MAQUINARIE, EQUIPO, HERRAMIENTA, LA MANO DE OBRA Y TODO LO NECESARIO PARA SU CORRECTA ELABORACIONO.","M2",{"$f":"D196*0.75","v":1579.5},null,null,0]
[145,"FORMACION DE TERRAPLEN CON MATERIAL DE BANCO, PARA DAR NIVEL DE SUBRASANTE, INCLUYE ESCARIFICADO,  PAPEO MANUAL, CONFORMACION DE LA SUBRASANTE, INCORPORACION DE HUMEDAD OPTIMA, TENDIDO, AFINE Y COMPACTACION AL 95% DE SU PVSM DE LA PRUEBA PROCTOR MODIFICADA (ASSHTO).","M3",{"$f":"D196*0.3*0.25","v":157.94999999999999},null,null,0]
[146,"SUMINISTRO Y COLOCACION DE TUBO DE PVC HIDRAULICO SERIE INGLESA RD 32.5 DE 18\" (450 MM) DE DIAMETRO, INCLUYE: RETIRO DE TUBO EXISTENTE, EXCAVACION, AFINE DE FONDO Y TALUDES DE CEPAS, COMPACTACION DE FONDO EN ZANJAS, SUMINISTRO Y COLOCACION DE CAMA DE ARENA, NIVELACION DE TUBERIA PARA DAR PENDIENTES DE PROYECTO, SUMINISTRO Y COLOCACION DE CINTA DE PRECAUCION O PELIGRO, ACOSTILLADO, RELLENO COMPACTADO CON MATERIAL DE BANCO, MATERIALES, MANO DE OBRA, EQUIPO Y HERRAMIENTA.","ML",10,null,null,0]
[null,null,null,null,null,"SUB TOTAL TERRACERIAS",{"$f":"SUM(G196:G202)","v":0}]
["XIII.- PAVIMENTACION"]
[147,"TRAZO Y NIVELACION TOPOGRAFICA DEL TERRENO PARA PAVIMENTACION. AL AMPARO DE ESTE CONCEPTO EL CONTRATISTA REALIZARA EL LEVANTAMIENTO TOPOGRAFICO DE LA SUPERFICIE EXISTENTE PREVIO AL INICIO DE LOS TRABAJOS, EL TRAZO Y NIVELACION CON EQUIPO DE TOPOGRAFIA DE LOS EJES, LIMITES, REFERENCIAS, MOJONERAS, BANCOS DE NIVEL Y DETALLES CONSTRUCTIVOS DE LOS TRABAJOS. (RESPETANDO EL NIVEL DE LA RASANTE EXISTENTE DURANTE TODAS LAS ETAPAS DEL PROCESO CONSTRUCTIVO), DEBERA COLOCAR REFERENCIAS FIJAS, FUERA DE LAS AREAS DE LOS TRABAJOS PARA ASEGURAR LOS ALINEAMIENTOS Y NIVELES. INCLUYE: LOS MATERIALES, HILO PLÁSTICO, MADERA, CALHIDRA, CONCRETO PARA MOJONERAS, MANO DE OBRA, HERRAMIENTA, EQUIPO NECESARIO Y VERIFICACIÓN EN TODO EL PROCESO DE LA OBRA.","M2",{"$f":"260*8.1","v":2106},null,null,{"$f":"ROUND(D205*E205,2)","v":0}]
[148,"CONSTRUCCION  DE  BASE  HIDRAULICA  CON  MATERIAL PETREO A TAMAÑO MAXIMO DE 1 1/2\", PARCIALMENTE TRITURADO PROVENIENTE DE BANCO. INCLUYE: ACARREOS, INCORPORACION DE HUMEDAD, HOMOGENIZACION, TENDIDO, AFINE Y COMPACTACION AL 100% DE SU PVSM, ESPESOR DE 20 CM. COMPACTOS, LIMPIEZA PREVIA DEL AREA, MANO DE OBRA, MATERIALES, HERRAMIENTA, EQUIPO NECESARIO.","M2",{"$f":"260*8.1","v":2106},null,null,{"$f":"ROUND(D206*E206,2)","v":0}]
[149,"RIEGO DE IMPREGNACION CON ASFALTO FM-1 Y/O FR-3 REBAJADO AL 8% EN VOLUMEN CON DIESEL, EN PROPORCIÓN DE 1.5 LTS/M² (NO SE ACEPTARA EL USO DE EMULSIONES). INCLUYE: BARRIDO Y LIMPIEZA PREVIA DE LA SUPERFICIE (RETIRO FUERA DE LA OBRA DE LOS MATERIALES PRODUCTO DE LA MISMA), CARGA, CALENTADO, FLETE, ACARREOS Y APLICACIÓN DEL ASFALTO, EN CASO DE SER NECESARIO SE REALIZARA UN ARENEO EN LAS ZONAS DONDE NO PENETRE LA IMPREGNACIÓN, EN UN TIEMPO NO MENOR DE 24 HRS., DESPUÉS DEL RIEGO, LOS MATERIALES, MANO DE OBRA, HERRAMIENTA, EQUIPO NECESARIO. (INCLUYE EL COSTO DEL ASFALTO). P.U.O.T.","M2",{"$f":"D205","v":2106},null,null,{"$f":"ROUND(D207*E207,2)","v":0}]
[150,"SUMINISTRO Y COLOCACION DE CONCRETO HIDRAULICO PREMEZCLADO MR42 KG/CM2  DE FRAGUADO A 28 DÍAS, AUTOCURABLE HIDRATIUM O SIMILAR, T.M.A. DE 1 1/2\". REV. DE 8 (± 2.0 CM.), MUESTREO EN OBRA, CEMENTO TIPO CPC40. SEGÚN NORMA NMX-C-414, AGREGADO GRUESO TRITURADO Y ARENA DE RIO. ELABORADO Y DOSIFICADO POR PESO EN PLANTA, EXTENDIDO EN LOSAS PARA PAVIMENTACIÓN CON ESPESOR DE 15 CM, TENDIDO Y NIVELADO CON PAVIMENTADORA DE CONCRETO (QUE EN GENERAL CUMPLA CON LO ESTABLECIDO EN LA CLAUSULA E EQUIPO, DE LA NORMA N.CTR.CAR.1.04.009/06, LIBRO CTR CONSTRUCCION, TEMA CAR CARRETERAS, PARTE 1 ACTIVIDADES DE OBRA, TITULO 04 PAVIMENTOS, CAPITULO 009 CARPETAS DE CONCRETO HIDRAULICO, DE LA NORMATIVA PARA LA INFRAESTRUCTURA DEL TRANSPORTE DE LA SECRETARÍA DE COMUNICACIONES Y TRANSPORTES), RODILLOS VIBRATORIOS, SEGUN SEA EL CASO, Y VIBRADO, AVIONADO CON CHECK ROD Y BULL FLOAT PARA UNA CORRECTA PLANICIDAD ACABADO CON PEINE METALICO DE CERDAS METALICAS ESPACIADOS @ 3/4\" PARA DAR TEXTURA EN ACABADO RAYADO TRANSVERSAL, COLADO POR FRANJAS CON UNA RELACIÓN LARGO ANCHO NO MAYOR DE 1.25; PLASTICO CAL. 600 MICRAS DESPUES DEL ACABADO, PARA REFORZAR CURADO CORRECTO DE LAS LOSAS. INCLUYE TRAZO, NIVELACIÓN, SEÑALAMIENTO, BARRIDO Y PREPARACIÓN DE LA SUPERFICIE, CIMBRADO Y DESCIMBRADO, VIBRADO, ELABORACIÓN, MEZCLADO Y ACARREO DEL CONCRETO HASTA EL LUGAR DE LA OBRA CON UN MÍNIMO DE CAMIONES REVOLVEDORES, PARA MANTENER UNA FRECUENCIA MINIMA DE 15 MINUTOS ENTRE UNIDADES DE ACUERDO AL CICLO REQUERIDO (PARA EVITAR LA FORMACIÓN DE JUNTAS FRÍAS DEL CONCRETO), PASA JUNTAS DE VARILLA LISA DE 3/4\" GRADO 60, DE 46 CM DE LARGO @ 30 CM, EN FORMA TRANSVERSAL Y COLOCADAS A CADA 3.50 M, (CON UN  EXTREMO ENGRASADO, FUNDA O PINTURA ANTIADHERENTE); BARRA DE AMARRE EN JUNTA LONG. CON VARILLA CORRUGADA DEL #4 F´Y=4200 KG/CM2 DE 79 CM DE LARGO @ 76 CM, DE ESPACIAMIENTO; CON CANASTILLA METÁLICA, AHOGADAS EN EL CONCRETO EN EL ESPESOR MEDIO; CORTE DE JUNTAS TRANSVERSALES Y LONGITUDINALES CON CORTADORA DE DISCO DE DIAMANTE A UNA PROFUNDIDAD DE 1/3 DEL PERALTE DE LA LOSA, MODULACIÓN DE TABLEROS SEGUN PROYECTO, PARA PREVENIR AGRIETAMIENTOS POR TEMPERATURA,  LIMPIEZA CON AIRE A PRESIÓN, Y  RELLENO EN JUNTA CONSTRUCTIVA CON CINTILLA DE POLIETILENO DE 3/8\" (BACKER ROD) , Y SELLADOR AUTONIVELANTE A BASE DE  POLIURETANO-ASFALTO TIPO SONOMERIC 1 Ó SIMILAR. INCLUYE: MATERIALES, MANO DE OBRA, HERRAMIENTA Y EQUIPO NECESARIO, CAPACIDAD INSTALADA PARA PRODUCIR Y SUMINISTRAR CONCRETO PREMEZCLADO CONFORME A PROGRAMA DE OBRA. (COLADOS NOCTURNOS).\nNOTA: EL LICITANTE DEBERA DE CONSIDERAR LAS PRUEBAS DE LABORATORIO RESPECTIVAS, EFECTUADAS POR UN LABORATORIO EXTERNO AL MISMO Y PRESENTARSE AL MOMENTO DE REALIZAR EL TRAMITE PARA EL PAGO DE ESTIMACIONES), INCLUYE: LIMPIEZA GENERAL (FINA Y GRUESA). VER ESPECIFICACIONES PARTICULARES Y APEGARSE A LAS NORMAS DE LA SCT. VIGENTES.","M3",{"$f":"260*8.1*0.15","v":315.89999999999998},null,null,{"$f":"ROUND(D208*E208,2)","v":0}]
[151,"SUMINISTRO Y COLOCACIÓN DE JUNTA DE DILATACIÓN ENTRE EL CONCRETO VIEJO Y EL CONCRETO NUEVO, PARA EVITAR LAS FALLAS POR DILATACIÓN Y CONTRACCIÓN A BASE DE CARTÓN ASFALTADO DE 1/2\" DE ESPESOR Y 15 CM DE ALTURA EN EL PERÍMETRO TOTAL, INCLUYE: CORTE CON DISCO PARA PERFILADO EN CONCRETO EXISTENTE, DEMOLICION DE AREA PERFILADA VARIABLA HASTA 50 CMS DE ANCHO, RETIRO DE ESCOMBRO PRODUCTO DE DEMLICION, LA FIJACIÓN CON CLAVO DE ACERO, CORTE DEL CARTÓN, DESPERDICIOS, ALINEACIÓN Y CUIDADO DURANTE EL COLADO, MATERIALES, MANO DE OBRA Y HERRAMIENTA.","ML",16,null,null,{"$f":"ROUND(D209*E209,2)","v":0}]
[null,null,null,null,null,"SUB TOTAL PAVIMENTACION",{"$f":"SUM(G205:G209)","v":0}]
["XIV.- SEÑALAMIENTO VERTICAL Y HORIZONTAL"]
[152,"SUMINISTRO Y COLOCACION LETRERO INFORMATIVO DE LA OBRA\" DE 10X15 CON LA LEYENDA Y LOGOTIPOS QUE OPORTUNAMENTE SE LE PROPORCIONE. CADA LETRERO SE FORMARÁ CON UN BASTIDOR METÁLICO CON PERFILES COMERCIALES ADECUADOS Y RESISTENTES A LA ACCIÓN DEL VIENTO. SOPORTADOS CON COLUMNAS DE ACERO ESTRUCTURAL A-36 GALVANIZADAS DE TIPO IPR DE 4”X4” X 22.3 KG/M Y ANCLADAS CON CUATRO (4) ANCLAS DE ACERO COMERCIAL DE UNA (1) PULGADA DE DIÁMETRO EN CADA COLUMNA, AHOGADAS EN MUERTOS DE CONCRETO F´C=200 KG/CM2. TMA ¾, REV. NORMAL. SOBRE EL BASTIDOR SE COLOCARÁ UNA LÁMINA DEL NÚMERO DIECIOCHO (18) DOBLÁNDOLA HACIA ATRÁS Y ATORNILLÁNDOLA EN TODO EL PERÍMETRO. PARA EL FONDO DEL LETRERO, LOGOTIPOS Y LA LEYENDA ALUSIVA, ASÍ COMO EN LA ESTRUCTURA METÁLICA SE USARÁ PRIMER ANTICORROSIVO, PINTURA DE ESMALTE DE COLOR PREVIAMENTE AUTORIZADO. SE LE DARÁ UN MANTENIMIENTO ADECUADO APLICANDO UN REPINTADO CUANDO SE LE INDIQUE.","PZA",1,null,null,{"$f":"ROUND(D212*E212,2)","v":0}]
[{"$f":"A212+1","v":153},"PINTURA DE RAYA CENTRAL, SE PINTARA UN ANCHO DE 15 CM DE COLOR PREVIAMENTE AUTORIZADO CON PINTURA PARA TRAFICO MARCA SEMEX O EQUIVALENTE, Y SE LE APLICARA UN REFLEJANTE CON MICROESFERA, Y SU APLICACION SERA SEGUN LO INDICADO EN EL MANUAL DE DISPOSITIVOS PARA EL CONTROL DEL TRANSITO EN CALLES Y CARRETERAS INCLUYE: MATERIALES MANO DE OBRA Y HERRAMIENTA.","ML",{"$f":"620.0376+23.6664+260","v":903.70399999999995},null,null,0]
[{"$f":"A213+1","v":154},"PINTURA DE RAYA LATERAL, SE PINTARA UN ANCHO DE 10 CMS DE COLOR BLANCO CON PINTURA PARA TRAFICO MARCA SEMEX O EQUIVALENTE, Y SE LE APLICARA UN REFLEJANTE CON MICROESFERA, Y SU APLICACION SERA SEGUN LO INDICADO EN EL MANUAL DE DISPOSITIVOS PARA EL CONTROL DEL TRANSITO EN CALLES Y CARRETERAS INCLUYE: MATERIALES MANO DE OBRA Y HERRAMIENTA.","ML",{"$f":"620.0376+23.6664+260","v":903.70399999999995},null,null,0]
[155,"SUMINISTRO Y COLOCACION DE SEÑALIZACION DE NOMENCLATURA DE CALLES FABRICADA EN LAMINA GALVANIZADA ACABADO ESMALTE, LETRAS Y SIMBOLOS EN VINIL EN ALTA INTENSIDAD, POSTE CUADRADO DE 1 1/2\" x 1 1/2\" CAL. 14. SUJETA CON TORNILLERIA Y TUERCAS CON GUASA DE PRESION, Y ANCLADO EN BASE DE CONCRETO. INCLUYE: MATERIALES MANO DE OBRA Y HERRAMIENTA.( UNA VEZ CONCLUIDOS LOS TRABAJOS SE RECOGERAN Y SE ENTREGARAN EN EL LUGAR QUE INDIQUE LA SUPERVISION DE OBRA).\nNOTA: TODO EL SEÑALAMIENTO DEBERA SER NUEVO.","PZA",6,null,null,0]
[156,"SUMINISTRO Y COLOCACION DE SEÑALIZACION DE SEÑAL RESTRICTIVA DE REDUCTOR DE VELOCIDAD EN CRUCES DE VIALIDADES CON INDICACION DE LIMITE DE VELOCIDAD  SR-9 \"30 Km/h\". . INCLUYE: MATERIALES MANO DE OBRA Y HERRAMIENTA.( UNA VEZ CONCLUIDOS LOS TRABAJOS SE RECOGERAN Y SE ENTREGARAN EN EL LUGAR QUE INDIQUE LA SUPERVISION DE OBRA).\nNOTA: TODO EL SEÑALAMIENTO DEBERA SER NUEVO.","PZA",{"$f":"4+4","v":8},null,null,0]
[157,"SUMINISTRO Y COLOCACION DE SEÑALIZACION DE SEÑAL RESTRICTIVA DE CORTESIA DE ALTO EN CRUCES DE VIALIDADES CON INDICACION DE ALTO TOTAL  SR-6. . INCLUYE: MATERIALES MANO DE OBRA Y HERRAMIENTA.( UNA VEZ CONCLUIDOS LOS TRABAJOS SE RECOGERAN Y SE ENTREGARAN EN EL LUGAR QUE INDIQUE LA SUPERVISION DE OBRA).\nNOTA: TODO EL SEÑALAMIENTO DEBERA SER NUEVO.","PZA",13,null,null,0]
[158,"SUMINISTRO Y COLOCACION DE SEÑALIZACION DE SEÑAL PREVENTIVA EN CRUCES DE VIALIDADES CON INDICACION CRUCE DE ESCOLARES SP-32. . INCLUYE: MATERIALES MANO DE OBRA Y HERRAMIENTA.( UNA VEZ CONCLUIDOS LOS TRABAJOS SE RECOGERAN Y SE ENTREGARAN EN EL LUGAR QUE INDIQUE LA SUPERVISION DE OBRA).\nNOTA: TODO EL SEÑALAMIENTO DEBERA SER NUEVO.","PZA",2,null,null,0]
[159,"SUMINISTRO Y APLICACIÓN DE PINTURA VINILICA AHULADA MARCA COMEX, EN COLOR BLANCO O AMARILLO (PREVIAMENTE AUTORIZADO) EN TRAMOS RECTOS Y ROJO EN CURVAS, A DOS MANOS EN GUANICIONES DE CONCRETO, INCLUYE: PREPARACION DE LA SUPERFICIE, LIMPIEZA, MATERIALES, MANO DE OBRA Y HERRAMIENTA.","ML",{"$f":"664.36+93.4+520","v":1277.76},null,null,0]
[160,"PINTADO DE SIMBOLO INTERNACIONAL PERSONAS CON CAPACIDADES DIFERENTES EN DISEÑO Y DIMENSIONES SEGUN LA NORMATIVIDAD VIGENTE (N.T.C. DEL REGLAMENTO DE CONSTRUCCIONES PARA EL ESTADO DE B.C. SUR), EN RAMPAS DE ACCESO. LA FIGURA Y SU CONTORNO SERA CON PINTURA EN COLOR AMARILLO TRANSITO. INCLUYE: LIMPIEZA Y PREPARACION DE LA SUPERFICIE, TRAZOS NECESARIOS, MOLDES, MATERIALES, MANO DE OBRA, HERRAMIENTA NECESARIA.","PZA",{"$f":"8+18","v":26},null,null,{"$f":"ROUND(D220*E220,2)","v":0}]
[161,"SUMINISTRO Y APLICACION DE PINTURA EN COLOR AZUL PANTONE No. 294, SEGUN LA NORMATIVIDAD VIGENTE (N.T.C. DEL REGLAMENTO DE CONSTRUCCIONES PARA EL ESTADO DE B.C. SUR), EN RAMPAS DE ACCESO A PERSONAS CON CAPACIDADES DIFERENTES. INCLUYE: LIMPIEZA Y PREPARACION DE LA SUPERFICIE, TRAZOS NECESARIOS, MATERIALES, MANO DE OBRA, HERRAMIENTA NECESARIA.","M2",{"$f":"(4.8724*2)+(2.8127*6)+(5.38*18)","v":123.46100000000001},null,null,{"$f":"ROUND(D221*E221,2)","v":0}]
[null,null,null,null,null,"SUB TOTAL SEÑALAMIENTO  VERTICAL Y HORIZONTAL",{"$f":"SUM(G212:G221)","v":0}]
["XV.- CICLOVIA"]
[162,"SUMINISTRO Y COLOCACIÓN DE INDICADORES DE ALINEAMIENTO  RETRACTIL DE 70 x 05 CMS DE DIAMETRO. DE  POLIETILENO, ANCLADO CON BOLARDO EN CICLOVIA, INCLUYE: CITILLA REFLEJANTE GRADO ALTA INTENCIDAD,  SU COLOCACIÓN Y FABRICACIÓN SERA LO INDICADO EN EL MANUAL DE DISPOSITIVOS PARA EL CONTROL DEL TRANSITO EN CALLES Y CARRETERAS. INCLUYE: MATERIALES, MANO DE OBRA Y HERRAMIENTA.","PZA",10,null,null,{"$f":"ROUND(D224*E224,2)","v":0}]
[{"$f":"A224+1","v":163},"SUMINISTRO Y COLOCACION DE BARRA DE CONFINAMIENTO TIPO TRAPEZOIDE DE COLOR AMARILLO, CON  REFLEJANTE EN UN SOLO LADO, Y SU COLOCACION SERA SEGUN LO INDICADO EN EL MANUAL DE DISPOSITIVOS PARA EL CONTROL DEL TRANSITO EN CALLES Y CARRETERAS. INCLUYE: MATERIALES, MANO DE OBRA  Y HERRAMIENTA.","PZA",10,null,null,0]
[{"$f":"A225+1","v":164},"SUMINISTRO Y COLOCACION DE BOYA METALICA DE COLOR INDICADO POR SUPERVISION, CON  REFLEJANTE EN UN SOLO LADO, Y SU COLOCACION SERA SEGUN LO INDICADO EN EL MANUAL DE DISPOSITIVOS PARA EL CONTROL DEL TRANSITO EN CALLES Y CARRETERAS. INCLUYE: MATERIALES, MANO DE OBRA  Y HERRAMIENTA.","PZA",1611,null,null,0]
[165,"SUMINISTRO Y COLOCACIÓN DE BOTON DE ALUMINIO EN ENTRADA A COCHERAS, Y SU COLOCACION SERA SEGUN LO INDICADO EN EL MANUAL DE DISPOSITIVOS PARA EL CONTROL DEL TRANSITO EN CALLES Y CARRETERAS. INCLUYE: MATERIALES, MANO DE OBRA  Y HERRAMIENTA","PZA",{"$f":"(190/0.55)+0.55","v":346.00454545454545},null,null,0]
[166,"SUMINISTRO Y APLICACIÓN DE PINTURA FRANJAS LATERALES CONTINUA EN CICLOVIA  DE 10 CM,  COLOR AMARILLO PINTURA PARA TRAFICO, INCLUYE: MATERIALES, EQUIPO, MANO DE OBRA, HERRAMIENTAS Y TODO LO NECESARIO PARA SU CORRECTA EJECUCION.  ","ML",{"$f":"620+250","v":870},null,null,0]
[167,"SUMINISTRO Y APLICACIÓN DE PINTURA FRANJA DE PARADA EN CICLOVIA, COLOR BLANCO PINTURA PARA TRAFICO, INCLUYE: MATERIALES, EQUIPO, MANO DE OBRA, HERRAMIENTAS Y TODO LO NECESARIO PARA SU CORRECTA EJECUCION.    ","PZA",15,null,null,0]
[168,"SUMINISTRO Y APLICACIÓN DE PINTURA EN LETRAS (ALTO) EN CICLOVIA, COLOR BLANCO PINTURA PARA TRAFICO, INCLUYE: MATERIALES, EQUIPO, MANO DE OBRA, HERRAMIENTAS Y TODO LO NECESARIO PARA SU CORRECTA EJECUCION.  ","PZA",15,null,null,0]
[169,"SUMINISTRO Y APLICACIÓN DE PINTURA EN SIMBOLO (FLECHAS) EN CICLOVIA, COLOR BLANCO PINTURA PARA TRAFICO, INCLUYE: MATERIALES, EQUIPO, MANO DE OBRA, HERRAMIENTAS Y TODO LO NECESARIO PARA SU CORRECTA EJECUCION.  ","PZA",20,null,null,0]
[170,"SUMINISTRO Y APLICACIÓN DE PINTURA EN SIMBOLO (BICICLETA) EN CICLOVIA, COLOR BLANCO PINTURA PARA TRAFICO, INCLUYE: MATERIALES, EQUIPO, MANO DE OBRA, HERRAMIENTAS Y TODO LO NECESARIO PARA SU CORRECTA EJECUCION.  ","PZA",20,null,null,0]
[null,null,null,null,null,"SUB TOTAL CICLOVIA",{"$f":"SUM(G224:G232)","v":0}]
["XVI.- REHABILITACION DE CAMINO"]
[171,"REHABILITACION Y MANTENIMIENTO DE CAMINO DE TERRACERIA; INCLUYE: RECARGUE DE MATERIAL DE TALUD, RECARGUE DE MATERIAL PRODUCTO DEL CORTE, RELLENAR PEQUEÑOS DESLAVES Y BACHES CON EL MISMO MATERIAL PRODUCTO DE RASTREO Y CORTE, RASTREO PARA OBTENER UNA SUPERFICIE SENSIBLEMENTE PLANA Y UNIFORME, NO ALTERAR EL CAUCE Y LA SECCIÓN DE CONTRACUNETAS O CANALES, RIEGO CON PIPA LAS VECES QUE SEAN NECESARIAS, DURANTE LA EJECUCION DE LA OBRA, EQUIPO Y TODO LO NECESARIO PARA SU CORRECTA EJECUCION.","KM",2.5,null,null,{"$f":"ROUND(D235*E235,2)","v":0}]
[null,null,null,null,null,"SUB TOTAL REHABILITACION DE CAMINO",{"$f":"G235","v":0}]
["XVII.- LIMPIEZA DE OBRA"]
[172,"LIMPIEZA DE OBRA DURANTE PROCESO Y AL TERMINO DE ESTA. INCLUYE: ACOPIO, CARGA, ACARREO DE MATERIALES Y ESCOMBRO PRODUCTO DE LOS TRABAJOS EJECUTADOS FUERA DE LA OBRA, HASTA EL SITIO AUTORIZADO, SEGUN LO INDIQUE LA SUPERVISION, LA MANO DE OBRA, HERRAMIENTA Y EQUIPO NECESARIO.","LOTE",1,null,null,{"$f":"ROUND(D238*E238,2)","v":0}]
[null,null,null,null,null,"SUB TOTAL LIMPIEZA DE OBRA",{"$f":"G238","v":0}]
[]
[null,null,null,null,null,"SUBTOTAL",{"$f":"G18+G21+G30+G61+G70+G80+G91+G153+G167+G173+G194+G203+G210+G222+G233+G236+G239","v":0}]
[null,null,null,null,null,"IVA",{"$f":"G241*0.16","v":0}]
[null,null,null,null,null,"TOTAL",{"$f":"G242+G241","v":0}]